Workbook

Sheet Data From Ellis
A1: Design Build Projects as recorded in ODOT Ellis computer system | G1: Data Updated: | H1: 2013-06-05
A2: Query: Design Builds | E2: Date Saved: | F2: 2013-06-05T17:45:35
A3: Award Date Fiscal Year | B3: District | C3: PID | D3: Project Name (ie CRS) | E3: Primary Work Category | F3: Project Description | G3: Awarded Sale Amount | H3: Construction Estimate (PE, R/W COSTS NOT INCLUDED)
A4: 1998 | B4: 7 | C4: 8410 | D4: CLA US 68 12.52 | E4: New Construction | F4: CONSTRUCT A CONNECTION BETWEEN CLA-68-15.19 AND CHP-68-0.00, TO BETTER UTILIZE EXISTING L/A SECTION OF ROADWAY. DESIGN & BUILD PROJECT. | G4: 15126788.73 | H4: 15926877.4 | I4: =IF(G4="",H4,G4) -> 15126788.73 | J4: =IF(B4="Subtotal",SUMIF($A$4:$A$500,A4,$I$4:$I$500)-I4,"") -> 
A5: 1998 | B5: No. of Projects | C5: =SUBTOTAL(3,C4:C4) -> 1 | I5: =IF(G5="",H5,G5) -> 0 | J5: =IF(B5="Subtotal",SUMIF($A$4:$A$500,A5,$I$4:$I$500)-I5,"") -> 
A6: 1998 | B6: Subtotal | C6: _ | H6: 15126788.73 | I6: 15126788.73 | J6: =IF(B6="Subtotal",SUMIF($A$4:$A$500,A6,$I$4:$I$500)-I6,"") -> 15126788.73
A7: 2000 | B7: 3 | C7: 18200 | D7: MED IR 0271 00.00 | E7: Major Reconstruction | F7: PAVEMENT RECONSTRUCTION DESIGN BUILD PROJECT | G7: 18856379.75 | H7: 21362542.21 | I7: 18856379.75 | J7: =IF(B7="Subtotal",SUMIF($A$4:$A$500,A7,$I$4:$I$500)-I7,"") -> 
A8: 2000 | B8: 4 | C8: 18703 | D8: ATB SR 0045 19.92 | E8: Bridge Replacement | F8: WIDENING OF BRIDGE ATB-45-19.92 OVER IR 90. DESIGN/BUILD. HIGH PRIORITY PROJECT MAX $1,555,082. | G8: 3228037.601 | H8: 3133281.08 | I8: 3228037.601 | J8: =IF(B8="Subtotal",SUMIF($A$4:$A$500,A8,$I$4:$I$500)-I8,"") -> 
A9: 2000 | B9: 4 | C9: 20411 | D9: STA IR 0077 11.59 | E9: Major Reconstruction | F9: MAJOR UPGRADE TO INCLUDE MODIFICATIONS TO MAINLINE, RAMPS, SERVICE ROADS AND BRIDGES. ADD LANE BOTH DIRCTIONS; CONSTRUCT FOR 12874; TRC ON DIST BRIDGE ONLY. DBrelates to pids 20410, 20412, 10769 | G9: 26159793.02 | H9: 24905922.3 | I9: 26159793.02 | J9: =IF(B9="Subtotal",SUMIF($A$4:$A$500,A9,$I$4:$I$500)-I9,"") -> 
A10: 2000 | B10: 6 | C10: 20681 | D10: FRA IR 71 14.39 | E10: Major Reconstruction | F10: IR71: PARTIAL AND FULL DEPTH PAVT REPAIR PAVT INLAY. SR315: REMOVE/REPLACE PAVT A ND SUBBASE, CURB, INLETS. REPLACE CONC BARRIER, LIGHTS, SIGNS, GUARDRAIL. D/B. | G10: 4015250.388 | H10: 3758870.58 | I10: 4015250.388 | J10: =IF(B10="Subtotal",SUMIF($A$4:$A$500,A10,$I$4:$I$500)-I10,"") -> 
A11: 2000 | B11: 7 | C11: 11160 | D11: MIA IR 75 4.94 | E11: Major Widening | F11: ADD ADDITIONAL LANES AND RECONSTRUCT EXISTING ROADWAY, UPGRADE ALL STRUCTURES AND PROVIDE 16'6" VERTICAL CLEARANCE. REMOVE MIA-75-0733L&R.* MNC MAX $18MIL. | G11: 49534522.07 | H11: 50524044.44 | I11: 49534522.07 | J11: =IF(B11="Subtotal",SUMIF($A$4:$A$500,A11,$I$4:$I$500)-I11,"") -> 
A12: 2000 | B12: 8 | C12: 18899 | D12: PRE IR 70 0.00 | E12: Minor Rehabilitation - Pavement Prmy Sys | F12: PROJECT CONSISTS OF PLANING, SUPERPAVING, INSTALL RAISED PAVEMENT MARKERS, WIDENING MAINLINE BRIDGES, AND PAINTING 12 INTERSTATE BRIDGES. DESIGN/BUILD. COMBINED WITH PIDS 19391 AND 19411. | G12: 22364931.91 | H12: 21869858.88 | I12: 22364931.91 | J12: =IF(B12="Subtotal",SUMIF($A$4:$A$500,A12,$I$4:$I$500)-I12,"") -> 
A13: 2000 | B13: No. of Projects | C13: =SUBTOTAL(3,C7:C12) -> 6 | I13: 0 | J13: =IF(B13="Subtotal",SUMIF($A$4:$A$500,A13,$I$4:$I$500)-I13,"") -> 
A14: 2000 | B14: Subtotal | C14: _ | H14: 124158914.7 | I14: 124158914.7 | J14: =IF(B14="Subtotal",SUMIF($A$4:$A$500,A14,$I$4:$I$500)-I14,"") -> 124158914.7
A15: 2001 | B15: 1 | C15: 21082 | D15: ALL US30 18.18 | E15: Bridge Repair | F15: REPLACE DECKS ON STRUCTURES OVER IR75 AND NORFOLK SOUTHERN R.R. MICRO-SILICA OVERLAY DECKS ON STRUCTURES OVER NAPOLEON ROAD. NO R/W REQ'D. DESIGN BUILD. | G15: 2365518.992 | H15: 2514997 | I15: 2365518.992 | J15: =IF(B15="Subtotal",SUMIF($A$4:$A$500,A15,$I$4:$I$500)-I15,"") -> 
A16: 2001 | B16: 3 | C16: 17891 | D16: LOR IR 0090 10.76 | E16: Resurfacing, Divided System | F16: 4-LANE RESURFACING & BRIDGE DECK OVERLAY INCL. ADD A LANE SR611 TO EXIST 6-LANE ENVIRONMENTAL CLEARED WITH PID 11385 DESIGN BUILD PROJECT | G16: 15072549.7 | H16: 17843111.11 | I16: 15072549.7 | J16: =IF(B16="Subtotal",SUMIF($A$4:$A$500,A16,$I$4:$I$500)-I16,"") -> 
A17: 2001 | B17: 4 | C17: 18722 | D17: MAH SR 0011 16.04 | E17: Bridge Replacement | F17: MAJOR BRIDGE WORK ON MAH. SR 11 - 16.04 L, SB OVER I80 EB AND MAH. SR 11 - 16.15 L, SB OVER I 680 WB RAMP & SR 11-16.05L OVER IR80 EB.COMBINED W/CANCEL PID 19322 | G17: 4508109.042 | H17: 4266200 | I17: 4508109.042 | J17: =IF(B17="Subtotal",SUMIF($A$4:$A$500,A17,$I$4:$I$500)-I17,"") -> 
A18: 2001 | B18: 4 | C18: 19854 | D18: POR US 0224 00.00 | E18: Resurfacing, Undivided System | F18: TWO LANE RESURFACING FROM SUMMIT CO. TO SR183.SAFETY IMPRV. BY ADDING TURN LANE TO MARTIN, CONGRESS LAKE AND WATERLOO INTERSECTION. DESIGN BUILD PROJECT. | G18: 4029915.756 | H18: 3726804 | I18: 4029915.756 | J18: =IF(B18="Subtotal",SUMIF($A$4:$A$500,A18,$I$4:$I$500)-I18,"") -> 
A19: 2001 | B19: 4 | C19: 19899 | D19: ATB SR 0011 23.33 | E19: Bridge Repair | F19: REDECK, ABUT. CARSON ROAD OVER SR 11. DESIGN BUILD PROJECT. | G19: 680428.43 | H19: 607458.5 | I19: 680428.43 | J19: =IF(B19="Subtotal",SUMIF($A$4:$A$500,A19,$I$4:$I$500)-I19,"") -> 
A20: 2001 | B20: 4 | C20: 22163 | D20: TRU IR 0080 09.08 | E20: Resurfacing, Divided System | F20: 4 LANE RESURFACING WITH BRIDGEWORK. | G20: 5373166.975 | H20: 5219099.98 | I20: 5373166.975 | J20: =IF(B20="Subtotal",SUMIF($A$4:$A$500,A20,$I$4:$I$500)-I20,"") -> 
A21: 2001 | B21: 8 | C21: 12412 | D21: HAM IR 471 0.26 | E21: Minor Rehabilitation - Pavement Prmy Sys | F21: MAJOR REHABILITATION OF EXISTING PAVEMENT AND SAFETY UPGRADE. 0.47 MILES DESIGN BUILD PROJECT | G21: 16821520.43 | H21: 16583439.98 | I21: 16821520.43 | J21: =IF(B21="Subtotal",SUMIF($A$4:$A$500,A21,$I$4:$I$500)-I21,"") -> 
A22: 2001 | B22: 8 | C22: 19705 | D22: HAM IR 71 11.08 | E22: Resurfacing, Divided System | F22: PROJECT CONSISTS OF PLANING AND RESURFACING AND INSTALLING PAVEMENT MARKINGS.CLOSURE OF NOISE WALL GAPS. PAINT AND LANDSCAPE EXISTING WALLS. | G22: 11791608.16 | H22: 11789259.99 | I22: 11791608.16 | J22: =IF(B22="Subtotal",SUMIF($A$4:$A$500,A22,$I$4:$I$500)-I22,"") -> 
A23: 2001 | B23: 8 | C23: 19786 | D23: HAM IR 275 32.27 | E23: Resurfacing, Divided System | F23: PROJECT CONSISTS OF PLANING, RESURFACING, PAVEMEMT MARKINGS AND STRUCTURAL STEEL RETROFIT, OVERLAY AND NEW PARAPETS FOR MAINLINE BR. OVER GREAT MIAMI RIVER | G23: 32140257.51 | H23: 31561632.69 | I23: 32140257.51 | J23: =IF(B23="Subtotal",SUMIF($A$4:$A$500,A23,$I$4:$I$500)-I23,"") -> 
A24: 2001 | B24: 10 | C24: 21053 | D24: ATH US 33 10.41 | E24: Bridge Repair | F24: BRIDGE DECK REHABILITATION. INCLUDES ATH-33-10.41R. DETOUR APPLICATION REQUIRED. DESIGN BUILD. | G24: 1899668.915 | H24: 1899900 | I24: 1899668.915 | J24: =IF(B24="Subtotal",SUMIF($A$4:$A$500,A24,$I$4:$I$500)-I24,"") -> 
A25: 2001 | B25: 11 | C25: 12761 | D25: TUS IR 77 3.94 | E25: Resurfacing, Divided System | F25: 4-LANE MAJOR RHABILITAION - RUBBLIZE AND ROLL; SIGNING, LIGHTING, FENCING, GUARD- RAIL, MODIFY OR REPAIR 5 BRIDGES. DESIGN BUILD. | G25: 10011441.86 | H25: 9618699.99 | I25: 10011441.86 | J25: =IF(B25="Subtotal",SUMIF($A$4:$A$500,A25,$I$4:$I$500)-I25,"") -> 
A26: 2001 | B26: No. of Projects | C26: =SUBTOTAL(3,C15:C25) -> 11 | I26: 0 | J26: =IF(B26="Subtotal",SUMIF($A$4:$A$500,A26,$I$4:$I$500)-I26,"") -> 
A27: 2001 | B27: Subtotal | C27: _ | H27: 104694185.8 | I27: 104694185.8 | J27: =IF(B27="Subtotal",SUMIF($A$4:$A$500,A27,$I$4:$I$500)-I27,"") -> 104694185.8
A28: 2002 | B28: 1 | C28: 21490 | D28: HAR SR 81 16.54 | E28: Bridge Repair | F28: REPLACE DECK ON STRUCTURE OVER THE BLANCHARD RIVER. | G28: 358972.054 | H28: 337250 | I28: 358972.054 | J28: =IF(B28="Subtotal",SUMIF($A$4:$A$500,A28,$I$4:$I$500)-I28,"") -> 
A29: 2002 | B29: 1 | C29: 23567 | D29: ALL CR 88 0.36 | E29: Major Widening | F29: WIDEN EXISTING ROADWAY TO THREE LANES TO PROVIDE FOR A TWO WAY LEFT TURN LANE FROM WEST OF GRONE RD. TO EAST OF LEHMAN RD. FEDERAL MAX $116,500 | G29: 126885.659 | H29: 239694.04 | I29: 126885.659 | J29: =IF(B29="Subtotal",SUMIF($A$4:$A$500,A29,$I$4:$I$500)-I29,"") -> 
A30: 2002 | B30: 2 | C30: 22516 | D30: HEN SR 108 15.61 | E30: Bridge Repair | F30: REHAB EXISTING BRIDGE BY REPLACING PARAPETS, SIDEWALKS & WEARING SURFACE; PATCH CONC SPANDRAL WALLS AS REQUIRED; PERFORM NECESSARY RELATED WORK. DESIGN-BUILD | G30: 1025541.085 | H30: 934490 | I30: 1025541.085 | J30: =IF(B30="Subtotal",SUMIF($A$4:$A$500,A30,$I$4:$I$500)-I30,"") -> 
A31: 2002 | B31: 5 | C31: 22587 | D31: PER CR 57 05.60 | E31: Bridge Replacement | F31: REPLACE 4 BRIDGES. INCLUDES PID 21426. | G31: 732832.752 | H31: 673850 | I31: 732832.752 | J31: =IF(B31="Subtotal",SUMIF($A$4:$A$500,A31,$I$4:$I$500)-I31,"") -> 
A32: 2002 | B32: 5 | C32: 22627 | D32: GUE CR 73 00.00 | E32: Bridge Replacement | F32: REPLACE 6 BRIDGES | G32: 537263.287 | H32: 494288 | I32: 537263.287 | J32: =IF(B32="Subtotal",SUMIF($A$4:$A$500,A32,$I$4:$I$500)-I32,"") -> 
A33: 2002 | B33: 7 | C33: 19669 | D33: MOT SR 4 4.83 | E33: Bridge Replacement | F33: REPLACE 28FT STRUCTURE OVER DRY RUN WITH MINIMAL APPROACH WORK. CLEAR SPAN = 25 FT | G33: 306540.504 | H33: 299860 | I33: 306540.504 | J33: =IF(B33="Subtotal",SUMIF($A$4:$A$500,A33,$I$4:$I$500)-I33,"") -> 
A34: 2002 | B34: 7 | C34: 24375 | D34: MER CR 22 1.32 | E34: Bridge Replacement | F34: REMOVE THREE EXISTING BRIDGE AND ASSOC. ROADWAY APPROACH PAVT. CONSTRUCT NEW PRECAST CONCRETE BOX BRIDGES AND ASSOC. ROADWAY APPROACH. DESIGN/BUILD. | G34: 405588.103 | H34: 373390 | I34: 405588.103 | J34: =IF(B34="Subtotal",SUMIF($A$4:$A$500,A34,$I$4:$I$500)-I34,"") -> 
A35: 2002 | B35: 8 | C35: 21713 | D35: PRE US 40 1.33 | E35: Bridge Replacement | F35: REPLACE BRIDGE NO. PRE-40-0133 OVER TRIBUTARY OF THE EAST FORK OF THE WHITEWATER RIVER. DESIGN BUILD PROJECT | G35: 262920.155 | H35: 265540 | I35: 262920.155 | J35: =IF(B35="Subtotal",SUMIF($A$4:$A$500,A35,$I$4:$I$500)-I35,"") -> 
A36: 2002 | B36: 8 | C36: 24434 | D36: PRE TR 444 0.80 & VAR DB | E36: Bridge Replacement | F36: REPLACE THREE EXISTING TRUSS BRIDGES (TR444-.80 TR453-1.25, AND TR409-1.60) AND REPLACE EXISTINGSTEEL BEAM BRIDGE (CR56-.60) DESIGN BUILD PROJECT. | G36: 1430890.556 | H36: 1579238.71 | I36: 1430890.556 | J36: =IF(B36="Subtotal",SUMIF($A$4:$A$500,A36,$I$4:$I$500)-I36,"") -> 
A37: 2002 | B37: No. of Projects | C37: =SUBTOTAL(3,C28:C36) -> 9 | I37: 0 | J37: =IF(B37="Subtotal",SUMIF($A$4:$A$500,A37,$I$4:$I$500)-I37,"") -> 
A38: 2002 | B38: Subtotal | C38: _ | H38: 5187434.155 | I38: 5187434.155 | J38: =IF(B38="Subtotal",SUMIF($A$4:$A$500,A38,$I$4:$I$500)-I38,"") -> 5187434.155
A39: 2003 | B39: 1 | C39: 24297 | D39: PAU CR 111 4.65 | E39: Bridge Repair | F39: REHABILITATE TWO EXISTING STRUCTURES BY REPLACING THE EXISTING DECKS. THIS WILL BE A DESIGN BUILD PROJECT. | G39: 948266.085 | H39: 540955.35 | I39: 948266.085 | J39: =IF(B39="Subtotal",SUMIF($A$4:$A$500,A39,$I$4:$I$500)-I39,"") -> 
A40: 2003 | B40: 1 | C40: 24518 | D40: HAN CR 8 4.85 | E40: Bridge Replacement | F40: REPLACE 6 EXISTING STRUCTURES IN HANCOCK COUNTY WITH NEW STRUCTURES. THIS WILL BE A DESIGN BUILD PROJECT. | G40: 1018570.543 | H40: 817520 | I40: 1018570.543 | J40: =IF(B40="Subtotal",SUMIF($A$4:$A$500,A40,$I$4:$I$500)-I40,"") -> 
A41: 2003 | B41: 3 | C41: 24442 | D41: HUR CR 0124 01.880 | E41: Bridge Replacement | F41: DESIGN BUILD PROJECT ON TR91 (TERRY RD) OVER THE HURON RIVER AND ON CR241 (WASHINGTON RD) OVER A BRANCH OF THE HURON RIVER | G41: 785137.961 | H41: 730581.4 | I41: 785137.961 | J41: =IF(B41="Subtotal",SUMIF($A$4:$A$500,A41,$I$4:$I$500)-I41,"") -> 
A42: 2003 | B42: 4 | C42: 18718 | D42: SUM SR 0021 01.79 | E42: Bridge Repair | F42: REHAB ONE STRUCTURE ON SR21 IN SUMMIT CO INCLUDES PIDS 18719 AND 13337. | G42: 1088493.798 | H42: 1066510 | I42: 1088493.798 | J42: =IF(B42="Subtotal",SUMIF($A$4:$A$500,A42,$I$4:$I$500)-I42,"") -> 
A43: 2003 | B43: 4 | C43: 19791 | D43: STA IR 0077 00.00 | E43: Resurfacing, Divided System | F43: FOUR LANE RESURFACING/UPGRADING FROM TUSCARAWAS COUNTY TO CANTON CORPORATION LIMIT. INCLUDING WORK ON 5 BRIDGES | G43: 5189057.093 | H43: 5077263 | I43: 5189057.093 | J43: =IF(B43="Subtotal",SUMIF($A$4:$A$500,A43,$I$4:$I$500)-I43,"") -> 
A44: 2003 | B44: 4 | C44: 22174 | D44: ATB SR 0011 25.16 | E44: Bridge Repair | F44: REDECK STRUCTURE, MAKE STRUCTURAL STEEL CONTINUOUS AND PAINT STRUCTURAL STEEL ON THE LEFT AND RIGHT PARTS OF THE BRIDGE | G44: 10085422.19 | H44: 10140920 | I44: 10085422.19 | J44: =IF(B44="Subtotal",SUMIF($A$4:$A$500,A44,$I$4:$I$500)-I44,"") -> 
A45: 2003 | B45: 4 | C45: 22229 | D45: SUM IR 0077 15.47 | E45: Bridge Repair | F45: REDECK/PAINT BRIDGE UNDER STONER ST. OLD PID 19922 | G45: 1536568.992 | H45: 1545830 | I45: 1536568.992 | J45: =IF(B45="Subtotal",SUMIF($A$4:$A$500,A45,$I$4:$I$500)-I45,"") -> 
A46: 2003 | B46: 4 | C46: 23672 | D46: SUM Main Street | E46: Major Reconstruction | F46: DECK REPLACEMENT AND RELATED IMPROVEMENT.DESIGN-BUILD PROJECT. | G46: 5260233.957 | H46: 5920548.77 | I46: 5260233.957 | J46: =IF(B46="Subtotal",SUMIF($A$4:$A$500,A46,$I$4:$I$500)-I46,"") -> 
A47: 2003 | B47: 4 | C47: 23929 | D47: TRU SR 0011 09.08 | E47: Lighting | F47: INSTALL INTERCHANGE LIGHTING FOR SR82 AT SR11 INTERCHANGE, ALSO RESURFACE THE INTERCHANGE INCLUDING ALL RAMPS WITH SKID-RESISTANT MATERIAL | G47: 2251812.016 | H47: 2235652.1 | I47: 2251812.016 | J47: =IF(B47="Subtotal",SUMIF($A$4:$A$500,A47,$I$4:$I$500)-I47,"") -> 
A48: 2003 | B48: 4 | C48: 24038 | D48: ATB CR 0020 00.02 | E48: Bridge Replacement | F48: REPLACE A 3 SPAN 60FOOT BY 116FOOT BY 50FOOT PRATT TRUSS BRIDGE OVER NORFOLK & SOUTHERN RAILROAD (PLYMOUTH RIDGE ROAD) | G48: 1082067.829 | H48: 865977 | I48: 1082067.829 | J48: =IF(B48="Subtotal",SUMIF($A$4:$A$500,A48,$I$4:$I$500)-I48,"") -> 
A49: 2003 | B49: 4 | C49: 24447 | D49: POR CR 0176 00.17 | E49: Bridge Replacement | F49: BRIDGE REPLACEMENT. DESIGN BUILD PROJECT | G49: 238318.496 | H49: 203039.9 | I49: 238318.496 | J49: =IF(B49="Subtotal",SUMIF($A$4:$A$500,A49,$I$4:$I$500)-I49,"") -> 
A50: 2003 | B50: 4 | C50: 24663 | D50: TRU CR 0302 02.40 | E50: Bridge Replacement | F50: (DONLEY ROAD) REPLACE EXISTING BRIDGES OVER SWINE CREEK & BRAND RIVER | G50: 484343.798 | H50: 463586.98 | I50: 484343.798 | J50: =IF(B50="Subtotal",SUMIF($A$4:$A$500,A50,$I$4:$I$500)-I50,"") -> 
A51: 2003 | B51: 5 | C51: 19821 | D51: GUE IR 77 07.68 | E51: Bridge Repair | F51: DECK REPLACEMENT AND PAINTING ON TWO BRIDGES / DESIGN BUILD LANDSCAPING TE FUNDS | G51: 2175146.938 | H51: 2120800 | I51: 2175146.938 | J51: =IF(B51="Subtotal",SUMIF($A$4:$A$500,A51,$I$4:$I$500)-I51,"") -> 
A52: 2003 | B52: 5 | C52: 24369 | D52: COS SR 16 07.18 | E52: Culvert Construction/Reconstr/Repair | F52: Replace 2 culverts/1 bridge using the ODOT Design Build PolicyCos-16-7.18 = From SR 16E: SR 83S to CR-271E to Second Street E to SR 541N to SR 16ELic-13-17.11 = From SR 13N to TR-76 (Weaver Rd) to TR-75 (Preston Rd) to TR-105 (Joseph Rd) to SR 13Gue-821-0 | G52: 524045.395 | H52: 553324.8 | I52: 524045.395 | J52: =IF(B52="Subtotal",SUMIF($A$4:$A$500,A52,$I$4:$I$500)-I52,"") -> 
A53: 2003 | B53: 6 | C53: 12769 | D53: PIC US 22 16.96 | E53: Bridge Repair | F53: REHAB 633FT BRIDGE OVER SCIOTO RIVER WITH SHORT APPROACH AND APPROACH GUARDRAIL. DESIGN/BUILD FAST TRACK CONST | G53: 2967458.023 | H53: 3528190 | I53: 2967458.023 | J53: =IF(B53="Subtotal",SUMIF($A$4:$A$500,A53,$I$4:$I$500)-I53,"") -> 
A54: 2003 | B54: 6 | C54: 23948 | D54: UNI CR 23 02.070 | E54: Bridge Replacement | F54: CEAO DESIGN/BUILD PROJECT TO REPLACE TWO STRUCTURES ON CR23 AND CR213. PREVIOUSLY PROGRAMMED AS 2 SEPARATE PIDS; PID 23949 (CR213) COMBINED WITH THIS PID. | G54: 698623.725 | H54: 832293.9 | I54: 698623.725 | J54: =IF(B54="Subtotal",SUMIF($A$4:$A$500,A54,$I$4:$I$500)-I54,"") -> 
A55: 2003 | B55: 6 | C55: 23997 | D55: FRA IR 270 1.52 | E55: Noise Wall | F55: CONSTRUCTION OF TYPE2 (RETROFIT) NOISE WALL. DESIGN/BUILD. | G55: 571530.039 | H55: 569250 | I55: 571530.039 | J55: =IF(B55="Subtotal",SUMIF($A$4:$A$500,A55,$I$4:$I$500)-I55,"") -> 
A56: 2003 | B56: 7 | C56: 24384 | D56: DAR SR 705 11.02 | E56: Bridge Replacement | F56: REPLACE A 27FT STRUCTURE OVER BRANCH OF MILE CREEK WITH MINIMAL APPROACH WORK. DESIGN/BUILD. | G56: 235092.442 | H56: 208670 | I56: 235092.442 | J56: =IF(B56="Subtotal",SUMIF($A$4:$A$500,A56,$I$4:$I$500)-I56,"") -> 
A57: 2003 | B57: 8 | C57: 21019 | D57: BUT TR 175 0.51 | E57: Bridge Replacement | F57: REPLACE TWO DEFICIENT STRUCTURES. COUNTY DESIGN BUILD PROJECT. | G57: 1055632.047 | H57: 989592.46 | I57: 1055632.047 | J57: =IF(B57="Subtotal",SUMIF($A$4:$A$500,A57,$I$4:$I$500)-I57,"") -> 
A58: 2003 | B58: 10 | C58: 24446 | D58: MEG CR0028 06.240 | E58: Bridge Replacement | F58: BRIDGE REPLACEMENT PROJECT USING THE DESIGN/BUILD PROCESS. INCLUDES MEG- CR029-0268. | G58: 340903.101 | H58: 292900 | I58: 340903.101 | J58: =IF(B58="Subtotal",SUMIF($A$4:$A$500,A58,$I$4:$I$500)-I58,"") -> 
A59: 2003 | B59: 11 | C59: 20996 | D59: TUS IR 77 7.55 | E59: Resurfacing, Divided System | F59: 4 LANE MAJ REHAB-RUBBLIZE &ROLL;SIGNING GUARDRAIL,REPAIR 5 BRIDGES. SIGNING IN CLUDED 00.00-3.88SECTION | G59: 9197739.922 | H59: 8853710 | I59: 9197739.922 | J59: =IF(B59="Subtotal",SUMIF($A$4:$A$500,A59,$I$4:$I$500)-I59,"") -> 
A60: 2003 | B60: 12 | C60: 24356 | D60: CUY SPAFFORD ROAD | E60: Bridge Replacement | F60: REPLACE THE SPAFFORD RD BRIDGE #23 OVER E.BRCH OF ROCKY RIVER IN BROOK PARK AND OLMSTED TWP LOCAL, NON-TRADITIONAL, DESIGN BUILD | G60: 873877.326 | H60: 938585 | I60: 873877.326 | J60: =IF(B60="Subtotal",SUMIF($A$4:$A$500,A60,$I$4:$I$500)-I60,"") -> 
A61: 2003 | B61: 12 | C61: 24364 | D61: LAK RAVENNA ROAD /VARIOUS | E61: Bridge Replacement | F61: REPLACE BRIDGES: RAVENNA ROAD OVER KELLOG CREEK / CUNNINGHAM ROAD OVER ARCOLA CREEK / PINEHILL ROAD OVER ELLISON CREEK IN MADISON & CONCORD TOWNSHIPS. LOCAL, NON-TRADITIONAL, DESIGN-BUILD | G61: 1442295.671 | H61: 1367347.34 | I61: 1442295.671 | J61: =IF(B61="Subtotal",SUMIF($A$4:$A$500,A61,$I$4:$I$500)-I61,"") -> 
A62: 2003 | B62: No. of Projects | C62: =SUBTOTAL(3,C39:C61) -> 23 | I62: 0 | J62: =IF(B62="Subtotal",SUMIF($A$4:$A$500,A62,$I$4:$I$500)-I62,"") -> 
A63: 2003 | B63: Subtotal | C63: _ | H63: 50050637.39 | I63: 50050637.39 | J63: =IF(B63="Subtotal",SUMIF($A$4:$A$500,A63,$I$4:$I$500)-I63,"") -> 50050637.39
A64: 2004 | B64: 1 | C64: 21607 | D64: HAN SR 37 10.81 | E64: Bridge Repair | F64: REHABILITATE EXISTING STRUCTURE OVER THE BLANCHARD RIVER BY REPLACING THE DECK, BACKWALLS AND APPROACH SLABS. | G64: 492600.624 | H64: 480910 | I64: 492600.624 | J64: =IF(B64="Subtotal",SUMIF($A$4:$A$500,A64,$I$4:$I$500)-I64,"") -> 
A65: 2004 | B65: 2 | C65: 24102 | D65: SEN SR 67 9.87 | E65: Resurfacing, Undivided System | F65: 2-LANE RESURFACING WITH PAVEMENT REPAIRS AS NEEDED (Cold in Place recycling); PERFORM NECESSARY RELATED WORK. | G65: 1795192.461 | H65: 1703351 | I65: 1795192.461 | J65: =IF(B65="Subtotal",SUMIF($A$4:$A$500,A65,$I$4:$I$500)-I65,"") -> 
A66: 2004 | B66: 2 | C66: 75172 | D66: D02-SIGN-FY2004(A) | E66: Signs | F66: District wide sign upgrade; perform necessary related work | G66: 364319.767 | H66: 322850 | I66: 364319.767 | J66: =IF(B66="Subtotal",SUMIF($A$4:$A$500,A66,$I$4:$I$500)-I66,"") -> 
A67: 2004 | B67: 6 | C67: 75280 | D67: FRA IR 270 20.03 | E67: Noise Wall | F67: Construct noisewalls along both sides of I-270 to fulfill commitments made when I-270 was widened to four lanes in each direction. Noise abatement for PIDs-12505, 12504, 12494, and 12495. | G67: 7891961.24 | H67: 7970600 | I67: 7891961.24 | J67: =IF(B67="Subtotal",SUMIF($A$4:$A$500,A67,$I$4:$I$500)-I67,"") -> 
A68: 2004 | B68: 7 | C68: 19670 | D68: MOT SR 48 5.16 | E68: Bridge Replacement | F68: REPLACE 21FT STRUCTURE OVER TRIBUTARY TO HOLES CREEK WITH MINIMAL APPROACH WORK. ELIMINATE GUARDRAIL. CLEAR SPAN = 19FT. | G68: 340560.019 | H68: 286480 | I68: 340560.019 | J68: =IF(B68="Subtotal",SUMIF($A$4:$A$500,A68,$I$4:$I$500)-I68,"") -> 
A69: 2004 | B69: 11 | C69: 19572 | D69: D11 Sign FY2004A | E69: Signs | F69: REPLACE OR EPOXY SEAL OVERHEAD SIGN SUPPORT STRUCTURES IN COL, HAS, JEF AND TUS COUNTIESUpgrade existing signs including all interchanges and intersections on Has-22 and Jef-22 locations. Includes Hopedale. | G69: 591897.093 | H69: 510130 | I69: =IF(G69="",H69,G69) -> 591897.093 | J69: =IF(B69="Subtotal",SUMIF($A$4:$A$500,A69,$I$4:$I$500)-I69,"") -> 
A70: 2004 | B70: 11 | C70: 19575 | D70: D11 Sign FY2004 B | E70: Signs | F70: UPGRADE EXISTING SIGNS INCLUDING ALL INTERCHANGES ON IR 470 | G70: 570522.578 | H70: 514942 | I70: 570522.578 | J70: =IF(B70="Subtotal",SUMIF($A$4:$A$500,A70,$I$4:$I$500)-I70,"") -> 
A71: 2004 | B71: No. of Projects | C71: =SUBTOTAL(3,C64:C70) -> 7 | I71: 0 | J71: =IF(B71="Subtotal",SUMIF($A$4:$A$500,A71,$I$4:$I$500)-I71,"") -> 
A72: 2004 | B72: Subtotal | C72: _ | H72: 12047053.78 | I72: 12047053.78 | J72: =IF(B72="Subtotal",SUMIF($A$4:$A$500,A72,$I$4:$I$500)-I72,"") -> 12047053.78
A73: 2005 | B73: 6 | C73: 75279 | D73: FRA/DEL IR 71 25.36/1.16 | E73: Noise Wall | F73: Construct noise walls along both sides of I-71 to fulfill environmental commitments when I-71 was widened (under PID-7278). | G73: 9338893.411 | H73: 8843450 | I73: 9338893.411 | J73: =IF(B73="Subtotal",SUMIF($A$4:$A$500,A73,$I$4:$I$500)-I73,"") -> 
A74: 2005 | B74: 6 | C74: 76564 | D74: FAY SR 41 22.18 | E74: Bridge Repair | F74: REPLACE DECK WITH A WIDER (THREE LANE) DECK AND APPROACH WORK FOR FUTURE WIDENING OF SR 41. DESIGN/BUILD PROJECT. | G74: 2323913.566 | H74: 2300761 | I74: 2323913.566 | J74: =IF(B74="Subtotal",SUMIF($A$4:$A$500,A74,$I$4:$I$500)-I74,"") -> 
A75: 2005 | B75: 7 | C75: 25295 | D75: MER SR 117 9.31 | E75: Bridge Replacement | F75: REPLACE TWO BRIDGES. DESIGN BUILD PROJECT. | G75: 440897.713 | H75: 403929.8 | I75: 440897.713 | J75: =IF(B75="Subtotal",SUMIF($A$4:$A$500,A75,$I$4:$I$500)-I75,"") -> 
A76: 2005 | B76: 10 | C76: 76160 | D76: WAS IR 77 6.59 | E76: Major Rehabilitation | F76: Four-lane major rehabilitation project. WAS IR 77 6.59-17.59 and NOB IR 77 0.00-1.56. Includes WAS IR 77 11.53 LT and WAS IR 77 12.08 RT bridges. PID's now combined with this job are: 76239 (WAS 77 10.90 and NOB 77 0.13 Landslide locations) and 21857 ( | G76: 21855150.76 | H76: 20279824 | I76: 21855150.76 | J76: =IF(B76="Subtotal",SUMIF($A$4:$A$500,A76,$I$4:$I$500)-I76,"") -> 
A77: 2005 | B77: No. of Projects | C77: =SUBTOTAL(3,C73:C76) -> 4 | I77: 0 | J77: =IF(B77="Subtotal",SUMIF($A$4:$A$500,A77,$I$4:$I$500)-I77,"") -> 
A78: 2005 | B78: Subtotal | C78: _ | H78: 33958855.45 | I78: 33958855.45 | J78: =IF(B78="Subtotal",SUMIF($A$4:$A$500,A78,$I$4:$I$500)-I78,"") -> 33958855.45
A79: 2006 | B79: 4 | C79: 23703 | D79: STA US 0062 08.32 | E79: Bridge Repair | F79: REDECK AND PAINTING OF ONE STRUCTURE.Design/Build. | G79: 906007.171 | H79: 826506.54 | I79: 906007.171 | J79: =IF(B79="Subtotal",SUMIF($A$4:$A$500,A79,$I$4:$I$500)-I79,"") -> 
A80: 2006 | B80: 4 | C80: 25072 | D80: STA SR 0225 00.76 | E80: Bridge Repair | F80: REPLACEMENT OF EXISTING DECK. | G80: 657647.281 | H80: 579280 | I80: 657647.281 | J80: =IF(B80="Subtotal",SUMIF($A$4:$A$500,A80,$I$4:$I$500)-I80,"") -> 
A81: 2006 | B81: 8 | C81: 25499 | D81: HAM SR 562 0.00 | E81: Resurfacing, Divided System | F81: REHABILITATE SR 562. | G81: 5923664.175 | H81: 5768190 | I81: 5923664.175 | J81: =IF(B81="Subtotal",SUMIF($A$4:$A$500,A81,$I$4:$I$500)-I81,"") -> 
A82: 2006 | B82: 9 | C82: 76169 | D82: SCI CR 15 0.12 Dixon Mill Road | E82: Bridge Replacement | F82: Replace existing deficient bridge on Dixon Mill ROad over the Little Scioto River, Scioto County Road 15. This project is a Design Build project per the Scioto County Engineer. | G82: 1583075.581 | H82: 1365475.03 | I82: 1583075.581 | J82: =IF(B82="Subtotal",SUMIF($A$4:$A$500,A82,$I$4:$I$500)-I82,"") -> 
A83: 2006 | B83: No. of Projects | C83: =SUBTOTAL(3,C79:C82) -> 4 | I83: 0 | J83: =IF(B83="Subtotal",SUMIF($A$4:$A$500,A83,$I$4:$I$500)-I83,"") -> 
A84: 2006 | B84: Subtotal | C84: _ | H84: 9070394.208 | I84: 9070394.208 | J84: =IF(B84="Subtotal",SUMIF($A$4:$A$500,A84,$I$4:$I$500)-I84,"") -> 9070394.208
A85: 2007 | B85: 9 | C85: 76170 | D85: SCI CR 48 2.85 Arion Road Brdg | E85: Bridge Replacement | F85: Replace existing deficient one lane bridge on Arion Road over Scioto Brush Creek. Scioto County Road 48. | G85: 1633720.93 | H85: 1687500 | I85: 1633720.93 | J85: =IF(B85="Subtotal",SUMIF($A$4:$A$500,A85,$I$4:$I$500)-I85,"") -> 
A86: 2007 | B86: 12 | C86: 79599 | D86: CUY IR 071 11.88 NOISE WALL | E86: Noise Wall | F86: Construct noise walls. | G86: 6408455.504 | H86: 6255500 | I86: 6408455.504 | J86: =IF(B86="Subtotal",SUMIF($A$4:$A$500,A86,$I$4:$I$500)-I86,"") -> 
A87: 2007 | B87: No. of Projects | C87: =SUBTOTAL(3,C85:C86) -> 2 | I87: 0 | J87: =IF(B87="Subtotal",SUMIF($A$4:$A$500,A87,$I$4:$I$500)-I87,"") -> 
A88: 2007 | B88: Subtotal | C88: _ | H88: 8042176.434 | I88: 8042176.434 | J88: =IF(B88="Subtotal",SUMIF($A$4:$A$500,A88,$I$4:$I$500)-I88,"") -> 8042176.434
A89: 2008 | B89: 3 | C89: 20375 | D89: CRA SR 0602 06.00 | E89: Bridge Repair | F89: NEW DECK, CHANGE TO SEMI-INTREGAL ABUT INCL NEW APPROACH SLAB | G89: 664856.423 | H89: 629850 | I89: 664856.423 | J89: =IF(B89="Subtotal",SUMIF($A$4:$A$500,A89,$I$4:$I$500)-I89,"") -> 
A90: 2008 | B90: 4 | C90: 23753 | D90: STA SR 0021 08.98 | E90: Bridge Repair | F90: REDECK with Widening AND PAINTING OF ONE STRUCTURE IN STARK COUNTY ON SR 21. | G90: 2030063.806 | H90: 1776526.5 | I90: 2030063.806 | J90: =IF(B90="Subtotal",SUMIF($A$4:$A$500,A90,$I$4:$I$500)-I90,"") -> 
A91: 2008 | B91: 6 | C91: 81281 | D91: FRA IR 71 19.09 | E91: Noise Wall | F91: Provide noise barrier walls along I-71 at various locations as warranted. Preliminary studies and public involvement will be performed under an OES task order contract. Construction will be under a design/build contract. | G91: 4435007.752 | H91: 4209700 | I91: 4435007.752 | J91: =IF(B91="Subtotal",SUMIF($A$4:$A$500,A91,$I$4:$I$500)-I91,"") -> 
A92: 2008 | B92: 6 | C92: 81547 | D92: UNI CR 307 4.89 | E92: Bridge Replacement | F92: STRUCTURE REPLACEMENT WITH APPROACH ROADWAY IMPROVEMENTS.LOCAL-LET PROJECT SOLD/ADMINISTERED BY UNI COUNTY ENGINEER. | G92: 534594.331 | H92: 539921.25 | I92: 534594.331 | J92: =IF(B92="Subtotal",SUMIF($A$4:$A$500,A92,$I$4:$I$500)-I92,"") -> 
A93: 2008 | B93: 8 | C93: 75633 | D93: CLE SR 32 13.14 | E93: Bridge Repair | F93: Bridge rehabilitation project of twin mainline SR 32 bridges over SR 276. Bridge Nos. CLE-32-1314 L/R, SFNs: 1300458/1300466, will receive new reinforced concrete decks; have the structural steel painted; and will receive other minor bridge work. Desig | G93: 1762403.682 | H93: 1726450 | I93: 1762403.682 | J93: =IF(B93="Subtotal",SUMIF($A$4:$A$500,A93,$I$4:$I$500)-I93,"") -> 
A94: 2008 | B94: No. of Projects | C94: =SUBTOTAL(3,C89:C93) -> 5 | I94: 0 | J94: =IF(B94="Subtotal",SUMIF($A$4:$A$500,A94,$I$4:$I$500)-I94,"") -> 
A95: 2008 | B95: Subtotal | C95: _ | H95: 9426925.994 | I95: 9426925.994 | J95: =IF(B95="Subtotal",SUMIF($A$4:$A$500,A95,$I$4:$I$500)-I95,"") -> 9426925.994
A96: 2009 | B96: 1 | C96: 81299 | D96: HAN CR 26-17.59 | E96: Bridge Replacement | F96: REMOVE AND REPLACE EXISTING STRUCTURALLY DEFICIENT BRIDGE OVER THE BLANCHARD RIVER. | G96: 829222.287 | H96: 843035 | I96: 829222.287 | J96: =IF(B96="Subtotal",SUMIF($A$4:$A$500,A96,$I$4:$I$500)-I96,"") -> 
A97: 2009 | B97: 4 | C97: 25277 | D97: SUM IR 0077 30.96 | E97: Bridge Repair | F97: Re-deck and paint of 8 structures. | G97: 10971100.43 | H97: 10651703.67 | I97: 10971100.43 | J97: =IF(B97="Subtotal",SUMIF($A$4:$A$500,A97,$I$4:$I$500)-I97,"") -> 
A98: 2009 | B98: 6 | C98: 81548 | D98: UNI CR 310 0.70 | E98: Bridge Replacement | F98: STRUCTURE REPLACEMENT WITH APPROACH ROADWAY IMPROVEMENTS.LOCAL-LET DESIGN/BUILD PROJECT SOLD/ADMINISTERED BY UNI COUNTY ENGINEER. | G98: 548449.919 | H98: 523111.6 | I98: 548449.919 | J98: =IF(B98="Subtotal",SUMIF($A$4:$A$500,A98,$I$4:$I$500)-I98,"") -> 
A99: 2009 | B99: 8 | C99: 23302 | D99: HAM IR 275 7.02 | E99: Slide Repair | F99: CONSTRUCT EARTHWORK BENCH AND COUNTER BERM TO STABILIZE THE LANDSLIDE ALONG EB IR275 RAMP TO EB IR74.PID 79999 combined for Construction. Installation of drainage tile to dewater landslide area at 0.59 miles south of IR74. | G99: 1261014.729 | H99: 1164020 | I99: 1261014.729 | J99: =IF(B99="Subtotal",SUMIF($A$4:$A$500,A99,$I$4:$I$500)-I99,"") -> 
A100: 2009 | B100: 11 | C100: 80922 | D100: BEL IR 70 0.000 | E100: Signs | F100: Upgrade existing signing along IR 70 and the signing at the interchanges in the project area. | G100: 459783.527 | H100: 426420 | I100: 459783.527 | J100: =IF(B100="Subtotal",SUMIF($A$4:$A$500,A100,$I$4:$I$500)-I100,"") -> 
A101: 2009 | B101: No. of Projects | C101: =SUBTOTAL(3,C96:C100) -> 5 | I101: 0 | J101: =IF(B101="Subtotal",SUMIF($A$4:$A$500,A101,$I$4:$I$500)-I101,"") -> 
A102: 2009 | B102: Subtotal | C102: _ | H102: 14069570.89 | I102: 14069570.89 | J102: =IF(B102="Subtotal",SUMIF($A$4:$A$500,A102,$I$4:$I$500)-I102,"") -> 14069570.89
A103: 2010 | B103: 1 | C103: 82163 | D103: HAN IR 75 22.12 | E103: Bridge Replacement | F103: Replace CR 109 bridge over Interstate 75. DESIGN/BUILD. | G103: 1734162.093 | H103: 1621090 | I103: 1734162.093 | J103: =IF(B103="Subtotal",SUMIF($A$4:$A$500,A103,$I$4:$I$500)-I103,"") -> 
A104: 2010 | B104: 1 | C104: 82330 | D104: HAN CR 169-0.83 | E104: Bridge Replacement | F104: REPLACE BRIDGE ON HAN CR 169-0.83 over Blanchard River (Design Build) | G104: 700376.163 | H104: 708355 | I104: 700376.163 | J104: =IF(B104="Subtotal",SUMIF($A$4:$A$500,A104,$I$4:$I$500)-I104,"") -> 
A105: 2010 | B105: 2 | C105: 86328 | D105: OTT TR 54 (Billman Rd) Brdg ARRA | E105: Bridge Repair | F105: An ARRA funded project to rehabilitate the steel truss bridge on Billman Rd (TR 54) over Cedar Creek; perform necessary related work. | G105: 289480.101 | H105: 292365 | I105: 289480.101 | J105: =IF(B105="Subtotal",SUMIF($A$4:$A$500,A105,$I$4:$I$500)-I105,"") -> 
A106: 2010 | B106: 3 | C106: 80196 | D106: LOR SR 0058 09.83 | E106: Bridge Deck Replacement | F106: Replace the Deck of LOR-058-09.83 over the West Branch of the Black Rivercoordinate with PID:82773 LOR SR 0058 08.34 - Resurfacing | G106: 717748.062 | H106: 674850 | I106: 717748.062 | J106: =IF(B106="Subtotal",SUMIF($A$4:$A$500,A106,$I$4:$I$500)-I106,"") -> 
A107: 2010 | B107: 3 | C107: 83445 | D107: HUR US 0224 08.55 | E107: Bridge Replacement | F107: Bridge Replacement | G107: 1006644.38 | H107: 951500 | I107: 1006644.38 | J107: =IF(B107="Subtotal",SUMIF($A$4:$A$500,A107,$I$4:$I$500)-I107,"") -> 
A108: 2010 | B108: 3 | C108: 83446 | D108: LOR SR 0058 25.34 | E108: Bridge Repair | F108: Bridge Rehabilitation(Design by Burgess & Niple under D/B contract with Perk Company) | G108: 497813.283 | H108: 444580 | I108: 497813.283 | J108: =IF(B108="Subtotal",SUMIF($A$4:$A$500,A108,$I$4:$I$500)-I108,"") -> 
A109: 2010 | B109: 3 | C109: 84604 | D109: WAY US 0042 00.60 | E109: Bridge Replacement | F109: Bridge Replacement | G109: 757359.26 | H109: 686590 | I109: 757359.26 | J109: =IF(B109="Subtotal",SUMIF($A$4:$A$500,A109,$I$4:$I$500)-I109,"") -> 
A110: 2010 | B110: 3 | C110: 86254 | D110: LOR SR 0057 12.54 | E110: Bridge Deck Replacement | F110: Repair twin structures LOR-057-12.54 L&R over branch of Black RiverBridge Deck ReplacementsPID:18982 previously awarded and then terminated | G110: 1390405.426 | H110: 1344310 | I110: 1390405.426 | J110: =IF(B110="Subtotal",SUMIF($A$4:$A$500,A110,$I$4:$I$500)-I110,"") -> 
A111: 2010 | B111: 4 | C111: 25223 | D111: TRU SR 0011 07.69 | E111: Bridge Repair | F111: REMOVE AND REPLACE EXISTING DECK OF TWO STRUCTURES, TRU-SR11-0959L & TRU-SR11- 0959R. Redeck of TRU-11-9.28. Replacement of TRU-11-19.52.Minor rehabilitation from SLM 7.69 to King Graves interchange. | G111: 13985579.5 | H111: 13097559.18 | I111: 13985579.5 | J111: =IF(B111="Subtotal",SUMIF($A$4:$A$500,A111,$I$4:$I$500)-I111,"") -> 
A112: 2010 | B112: 6 | C112: 85039 | D112: UNI 2009 HISTORIC BRIDGE PRESERV | E112: Bridge Maintenance | F112: INSTALLATION OF LIGHTING SYSTEMS AND HEAT DETECTION SYSTEMS ON FOUR HISTORIC COVERED BRIDGES IN UNION COUNTY. POTTERSBURG COVERED BRIDGE ON NORTH LEWISBURG MULTI PURPOSE TRAIL; SPAIN CREEK COVERED BRIDGE ON CR163 (INSKEEP-CRATTY ROAD) OVER SPAIN CREEK; CU | G112: 266187.597 | H112: 265640 | I112: 266187.597 | J112: =IF(B112="Subtotal",SUMIF($A$4:$A$500,A112,$I$4:$I$500)-I112,"") -> 
A113: 2010 | B113: 6 | C113: 85537 | D113: FRA IR 71 19.09 (Phase 2) | E113: Noise Wall | F113: Provide noise barrier walls along I-71 at various locations as waranted. Design/build contract. | G113: 5247566.085 | H113: 4621550 | I113: 5247566.085 | J113: =IF(B113="Subtotal",SUMIF($A$4:$A$500,A113,$I$4:$I$500)-I113,"") -> 
A114: 2010 | B114: 6 | C114: 86359 | D114: MAD CR 12 (Old Xenia Rd) | E114: Bridge Replacement | F114: Replace bridge on MAD CR 12 (Old Xenia Rd) on Woolsey Ditch/Paint Creek. | G114: 389587.984 | H114: 355337.5 | I114: 389587.984 | J114: =IF(B114="Subtotal",SUMIF($A$4:$A$500,A114,$I$4:$I$500)-I114,"") -> 
A115: 2010 | B115: 6 | C115: 86459 | D115: DEL CR 24 5.020 | E115: Bridge Deck Replacement | F115: Replace deck and superstructure members.Modify or replace bridge abutments.Possible piers work, minor roadway approach work, guardrail replacement.MORPC Stimulus funded project - cap amount of $1,500,000. | G115: 718568.19 | H115: 767656.33 | I115: 718568.19 | J115: =IF(B115="Subtotal",SUMIF($A$4:$A$500,A115,$I$4:$I$500)-I115,"") -> 
A116: 2010 | B116: 8 | C116: 84497 | D116: HAM IR 75 10.09 | E116: Minor Rehabilitation - Pavement Prmy Sys | F116: Resurface and perform pavement repair on I-75 from south of SR 126 to south of the Lockland Corp. Project includes several minor bridge rehabilitations. | G116: 7018498.161 | H116: 6964179.77 | I116: 7018498.161 | J116: =IF(B116="Subtotal",SUMIF($A$4:$A$500,A116,$I$4:$I$500)-I116,"") -> 
A117: 2010 | B117: 9 | C117: 85830 | D117: LAW S.P. INTERMODAL ROADWAY | E117: Inter-modal Facility | F117: It is proposed to improve access roads that would allow for better access and handling between river barges, rail, and highway freight. Note: Split to PID 86717 "LAW S.P. INTERMODAL RAIL" | G117: 1132713.178 | H117: 1461028.62 | I117: 1132713.178 | J117: =IF(B117="Subtotal",SUMIF($A$4:$A$500,A117,$I$4:$I$500)-I117,"") -> 
A118: 2010 | B118: 9 | C118: 86717 | D118: LAW S.P. Intermodal Rail | E118: Inter-modal Facility | F118: It is proposed to construct rail lines and a concrete transfer pad to facilitate cargo transfer from rail to highway. Note: Split from PID 85830 "LAW S.P. INTERMODAL ROADWAY" | G118: 2501989.147 | H118: 2452617.38 | I118: 2501989.147 | J118: =IF(B118="Subtotal",SUMIF($A$4:$A$500,A118,$I$4:$I$500)-I118,"") -> 
A119: 2010 | B119: 11 | C119: 76825 | D119: BEL IR 70 7.61 | E119: Major Reconstruction | F119: UBCO on existing mainline and ramps, full depth removal and rigid replacement at overhead bridges, reconstruct median and median drainage, replace guardrail and signs, rehabilitation of 4 bridges, reconstruction of passenger car parking are in EB rest are | G119: 25534892.59 | H119: 25055850 | I119: 25534892.59 | J119: =IF(B119="Subtotal",SUMIF($A$4:$A$500,A119,$I$4:$I$500)-I119,"") -> 
A120: 2010 | B120: 11 | C120: 78478 | D120: COL US0030/SR0011 25.09/10.82 | E120: Signs | F120: Upgrade all existing signing along US 30 & SR 11 including the signing at the interchanges | G120: 779020.221 | H120: 721880 | I120: 779020.221 | J120: =IF(B120="Subtotal",SUMIF($A$4:$A$500,A120,$I$4:$I$500)-I120,"") -> 
A121: 2010 | B121: 11 | C121: 81587 | D121: HAS US 250 11.720 | E121: Major Rehabilitation | F121: Major rehabilitation of existing pavement with unbonded concrete overlay - Major 2 funding; ADDED BY CHANGE ORDER: FHWA OH11-02 flood site; DSR HAS-002: Embankment Failure/ Two Slides - 250ft. Landslide above SR250. The crown of slide is located near old | G121: 4701505.756 | H121: 4635638 | I121: 4701505.756 | J121: =IF(B121="Subtotal",SUMIF($A$4:$A$500,A121,$I$4:$I$500)-I121,"") -> 
A122: 2010 | B122: 11 | C122: 86367 | D122: JEF SR 43 0.00 | E122: Major Rehabilitation | F122: Concrete pavement replacement, spot roadway base repair, curb repair and replacement, catch basin replacements, guardrail replacement, street lighting replacement, retaining wall repair, signing and pavement marking replacement. ARRA ODOT Tracking ID is | G122: 7715848.302 | H122: 7830667.09 | I122: 7715848.302 | J122: =IF(B122="Subtotal",SUMIF($A$4:$A$500,A122,$I$4:$I$500)-I122,"") -> 
A123: 2010 | B123: 11 | C123: 87863 | D123: BEL Shadyside - salt storage | E123: Buildings - Mix Shed,etc. | F123: construction of 500 ton salt storage - tensioned Fabric structure | G123: 147721.047 | H123: 149190 | I123: 147721.047 | J123: =IF(B123="Subtotal",SUMIF($A$4:$A$500,A123,$I$4:$I$500)-I123,"") -> 
A124: 2010 | B124: 11 | C124: 87864 | D124: JEF Dillonvale - salt storage | E124: Buildings - Mix Shed,etc. | F124: construction of 1000 ton salt storage - Tensioned Fabric Structure | G124: 213363.953 | H124: 215490 | I124: 213363.953 | J124: =IF(B124="Subtotal",SUMIF($A$4:$A$500,A124,$I$4:$I$500)-I124,"") -> 
A125: 2010 | B125: 11 | C125: 87879 | D125: JEF SR 7 1.660 | E125: Bridge Repair | F125: Remove existing MSC overlay and replace with new MSC overlay (including approach slabs) and perform some full-depth repairs to the deck. | G125: 796287.867 | H125: 804220 | I125: 796287.867 | J125: =IF(B125="Subtotal",SUMIF($A$4:$A$500,A125,$I$4:$I$500)-I125,"") -> 
A126: 2010 | B126: 12 | C126: 87632 | D126: CUY IR 077 00.38/VAR | E126: Bridge Deck Replacement | F126: Bridge Deck: Replace the bridge decks over I-77 at Snowville Road, Highland Drive, Valley Parkway, and Oakes Road in Brecksville. Valley Parkway moved to PID 91820. | G126: 4143850.364 | H126: 3782540 | I126: 4143850.364 | J126: =IF(B126="Subtotal",SUMIF($A$4:$A$500,A126,$I$4:$I$500)-I126,"") -> 
A127: 2010 | B127: 12 | C127: 87633 | D127: CUY IR 077 03.45/VAR | E127: Bridge Deck Replacement | F127: Bridge Deck: Replace the bridge decks over I-77 at Harris Road, Lacey Lane, and Chestnut Road in the Cities of Independence and Broadview Heights. | G127: 2810196.047 | H127: 2527440 | I127: 2810196.047 | J127: =IF(B127="Subtotal",SUMIF($A$4:$A$500,A127,$I$4:$I$500)-I127,"") -> 
A128: 2010 | B128: No. of Projects | C128: =SUBTOTAL(3,C103:C127) -> 25 | I128: 0 | J128: =IF(B128="Subtotal",SUMIF($A$4:$A$500,A128,$I$4:$I$500)-I128,"") -> 
A129: 2010 | B129: Subtotal | C129: _ | H129: 85197364.75 | I129: 85197364.75 | J129: =IF(B129="Subtotal",SUMIF($A$4:$A$500,A129,$I$4:$I$500)-I129,"") -> 85197364.75
A130: 2011 | B130: 1 | C130: 84564 | D130: ALL SR 81 4.89 | E130: Bridge Deck Replacement | F130: REPLACE THE CONCRETE BRIDGE DECK ON THE BRIDGE OVER THE AUGLAIZE RIVER | G130: 717813.955 | H130: 654790 | I130: 717813.955 | J130: =IF(B130="Subtotal",SUMIF($A$4:$A$500,A130,$I$4:$I$500)-I130,"") -> 
A131: 2011 | B131: 2 | C131: 76710 | D131: SAN US 20 03.77 Rehab | E131: Minor Rehabilitation - Pavement Prmy Sys | F131: A district funded project to rehabilitate SAN-20 from east of Woodville east corp line to a butt joint west of TR138; perform necessary related work. See PID 85241 for WB resurf. Update: Central office pavement visited the project site. New treatment reco | G131: 13313963.52 | H131: 12908730 | I131: 13313963.52 | J131: =IF(B131="Subtotal",SUMIF($A$4:$A$500,A131,$I$4:$I$500)-I131,"") -> 
A132: 2011 | B132: 3 | C132: 87315 | D132: MED Mud Lake Rd Replace Bridge | E132: Bridge Replacement | F132: MED Mud Lake Rd Bridge Replacement (SFN #5238714) - Split from PID 85697. | G132: 1711437.569 | H132: 1642355.49 | I132: 1711437.569 | J132: =IF(B132="Subtotal",SUMIF($A$4:$A$500,A132,$I$4:$I$500)-I132,"") -> 
A133: 2011 | B133: 3 | C133: 88375 | D133: D3 ERI/HUR Salt Storage Building | E133: Salt Dome | F133: Design Build contract for Salt Storage structure at Erie and Huron County Garages.Design Build-will contain PE and CO Phase funding eventsD3 Building Superintendent: Richard Feldkamp | G133: 762403.101 | H133: 700000 | I133: =IF(G133="",H133,G133) -> 762403.101 | J133: =IF(B133="Subtotal",SUMIF($A$4:$A$500,A133,$I$4:$I$500)-I133,"") -> 
A134: 2011 | B134: 3 | C134: 88662 | D134: WAY SR 0003 24.25 | E134: Culvert Construction/Reconstr/Repair | F134: Culvert Replacement WAY-003-24.25 +/- | G134: 161111.579 | H134: 136870 | I134: 161111.579 | J134: =IF(B134="Subtotal",SUMIF($A$4:$A$500,A134,$I$4:$I$500)-I134,"") -> 
A135: 2011 | B135: 4 | C135: 25501 | D135: ATB SR 0011 13.30 | E135: Minor Rehabilitation - Pavement Prmy Sys | F135: PAVEMENT REPAIR AND BRIDGE WORK | G135: 11701964 | H135: 11360330.95 | I135: 11701964 | J135: =IF(B135="Subtotal",SUMIF($A$4:$A$500,A135,$I$4:$I$500)-I135,"") -> 
A136: 2011 | B136: 4 | C136: 84631 | D136: TRU US 0422 19.94 | E136: Bridge Replacement | F136: Superstructure replacement. | G136: 851713.178 | H136: 850842.4 | I136: 851713.178 | J136: =IF(B136="Subtotal",SUMIF($A$4:$A$500,A136,$I$4:$I$500)-I136,"") -> 
A137: 2011 | B137: 4 | C137: 86995 | D137: ATB 90/45 (2.33)(7.43)/19.89 | E137: Bridge Deck Replacement | F137: Bridge re-deck. Second structure at SLM ATB-90-7.43. Sealing sfn#0402591 at ATB-45-19.89. | G137: 1173311.143 | H137: 1180300 | I137: 1173311.143 | J137: =IF(B137="Subtotal",SUMIF($A$4:$A$500,A137,$I$4:$I$500)-I137,"") -> 
A138: 2011 | B138: 4 | C138: 87318 | D138: POR-Rock Spring/Knapp Rds Brdgs | E138: Bridge Replacement | F138: POR Rock Springs Rd Replace Bridge (SFN #6730809)- Split from PID 85697. SEE PID 80658 $700,000 replacement of same bridge (SFN 6730809). Added POR Knapp Rd Replace Bridge, PID 87317 (SFN #6741150) as of 01/20/2010. | G138: 5645671.006 | H138: 5483569.82 | I138: 5645671.006 | J138: =IF(B138="Subtotal",SUMIF($A$4:$A$500,A138,$I$4:$I$500)-I138,"") -> 
A139: 2011 | B139: 4 | C139: 87319 | D139: TRU 5th Street Replace Bridge | E139: Bridge Replacement | F139: TRU 5th Street Replace Bridge replacement - Split from PID 85697. | G139: 1928999.651 | H139: 1911110 | I139: 1928999.651 | J139: =IF(B139="Subtotal",SUMIF($A$4:$A$500,A139,$I$4:$I$500)-I139,"") -> 
A140: 2011 | B140: 4 | C140: 87966 | D140: POR IR 0076 (17.59)(19.61) | E140: Bridge Repair | F140: Superstructure replacements. | G140: 1910364.341 | H140: 1901000 | I140: 1910364.341 | J140: =IF(B140="Subtotal",SUMIF($A$4:$A$500,A140,$I$4:$I$500)-I140,"") -> 
A141: 2011 | B141: 6 | C141: 77369 | D141: FRA IR 71 17.760 (Pjt 1) | E141: Major Reconstruction | F141: FIRST CONSTRUCTION PROJECT RESULTING FROM MAJOR INVESTMENT/PRELIMINARY ENGINEERING STUDY (PID 23318).Reconstruction of the 670/71 Interchange. Work involves realignment of I-670 EB so through traffic stays to the left and traffic to I-71 exits to the righ | G141: 218210658.9 | H141: 255190121 | I141: 218210658.9 | J141: =IF(B141="Subtotal",SUMIF($A$4:$A$500,A141,$I$4:$I$500)-I141,"") -> 
A142: 2011 | B142: 6 | C142: 82358 | D142: UNI TR 279 1.04 | E142: Bridge Replacement | F142: CEAO FUNDED BRIDGE REPLACEMENT PROJECT.UNI-TR279-1.04 (SNEDIKER ROAD) OVER FULTON CREEK. CLAIBOURNE TOWNSHIP.PROJECT TO BE SOLD AS DESIGN/BUILD BY UNION COUNTY ENGINEER. | G142: 664053.101 | H142: 670670 | I142: 664053.101 | J142: =IF(B142="Subtotal",SUMIF($A$4:$A$500,A142,$I$4:$I$500)-I142,"") -> 
A143: 2011 | B143: 6 | C143: 85950 | D143: D06 ExtruSign FY11A | E143: Signing | F143: Extru sign replacement for improved reflectivity for safety. Limits include I-270 and lead-in signs.Upgrade existing ground and overhead mounted extrusheet signs on mainline and ramps.Upgrade extrusheet signs on side street approaches to interchanges tha | G143: 5220095.612 | H143: 5037260 | I143: 5220095.612 | J143: =IF(B143="Subtotal",SUMIF($A$4:$A$500,A143,$I$4:$I$500)-I143,"") -> 
A144: 2011 | B144: 8 | C144: 83047 | D144: Pre TR259/329 Des Build Br Rep | E144: Bridge Replacement | F144: Junction Road (TR 259) Replace S.D. steel truss bridge Ketterman Road (TR 329) Replace S.D. bridge with minimal approach work | G144: 828514.341 | H144: 836770 | I144: 828514.341 | J144: =IF(B144="Subtotal",SUMIF($A$4:$A$500,A144,$I$4:$I$500)-I144,"") -> 
A145: 2011 | B145: 8 | C145: 85364 | D145: GRE IR 675 3.10 | E145: Noise Wall Maintenance/Repair (NEW) | F145: Replace existing noise wall panels on existing noise wall, investigate salvaging existing steel posts, replace steel posts where warranted.(Design Build Project) | G145: 2057399.225 | H145: 2053150 | I145: 2057399.225 | J145: =IF(B145="Subtotal",SUMIF($A$4:$A$500,A145,$I$4:$I$500)-I145,"") -> 
A146: 2011 | B146: 9 | C146: 79855 | D146: ADA US 52 1.10 Brdg Replace | E146: Bridge Replacement | F146: It is proposed to replace bridge number 0101621. | G146: 1460197.984 | H146: 1355400 | I146: 1460197.984 | J146: =IF(B146="Subtotal",SUMIF($A$4:$A$500,A146,$I$4:$I$500)-I146,"") -> 
A147: 2011 | B147: 11 | C147: 84323 | D147: COL SR 7 0.00 | E147: Signs | F147: Upgrading the existing signing along SR 7 in Columbiana and Jefferson county and US 36 and US 250 in Tuscarawas county. | G147: 1324784.302 | H147: 1274620 | I147: 1324784.302 | J147: =IF(B147="Subtotal",SUMIF($A$4:$A$500,A147,$I$4:$I$500)-I147,"") -> 
A148: 2011 | B148: 12 | C148: 85531 | D148: CUY IR 090 14.90 WB Design Build | E148: New Bridge | F148: Design Build ContractOther Consultant Contracts: DBE Outreach(Dec 7 2009), Project Controls-Scheduling(Apr 12 2010), Project Controls-Reporting, Document Management, etc.(Apr 12 2010), Construction Inspection (2)(Fall 2010), Material Testing (2) (Fall 201 | G148: 313020930.2 | H148: 314401840.8 | I148: 313020930.2 | J148: =IF(B148="Subtotal",SUMIF($A$4:$A$500,A148,$I$4:$I$500)-I148,"") -> 
A149: 2011 | B149: No. of Projects | C149: =SUBTOTAL(3,C130:C148) -> 19 | I149: 0 | J149: =IF(B149="Subtotal",SUMIF($A$4:$A$500,A149,$I$4:$I$500)-I149,"") -> 
A150: 2011 | B150: Subtotal | C150: _ | H150: 582665386.8 | I150: 582665386.8 | J150: =IF(B150="Subtotal",SUMIF($A$4:$A$500,A150,$I$4:$I$500)-I150,"") -> 582665386.8
A151: 2012 | B151: 2 | C151: 84319 | D151: OTT Ferry Terminal Building | E151: Dock Facilities | F151: A ferry boat discretionary (FBD) funded project to utilize and showcase solar technology at the Port Clinton and Put-in-Bay terminal buildings. The terminal buildings will receive new roofing and solar technology will be incorporated with either solar pa | G151: 374918.26 | H151: 365231 | I151: 374918.26 | J151: =IF(B151="Subtotal",SUMIF($A$4:$A$500,A151,$I$4:$I$500)-I151,"") -> 
A152: 2012 | B152: 2 | C152: 89226 | D152: SEN/WIL Vestibule Additions | E152: Facility Renovation | F152: A lands & building funded project to remove and re-install of the entrance door so as to open outward. A new wall and door will be added within the vastibule in a similar format; perform necessary related work. UPDATE (3-8-11): project includes PID 89227 | G152: 103468.992 | H152: 104500 | I152: 103468.992 | J152: =IF(B152="Subtotal",SUMIF($A$4:$A$500,A152,$I$4:$I$500)-I152,"") -> 
A153: 2012 | B153: 3 | C153: 82255 | D153: LOR SR 0002 SYSSIGN FY2012 | E153: Signs | F153: Systematic Sign ReplacementLOR-002-03.50 - 11.14 / LOR-090-10.78 - 23.33exclude signs associated with Avon Interchange PID:83607I-90 was previously programmed as PID:82256 | G153: 1043865.988 | H153: 1007260 | I153: 1043865.988 | J153: =IF(B153="Subtotal",SUMIF($A$4:$A$500,A153,$I$4:$I$500)-I153,"") -> 
A154: 2012 | B154: 4 | C154: 76295 | D154: ATB SR 0011 23.85 | E154: Bridge Repair | F154: Miscellaneous bridge work to six structures. | G154: 4192732.384 | H154: 4130379.82 | I154: 4192732.384 | J154: =IF(B154="Subtotal",SUMIF($A$4:$A$500,A154,$I$4:$I$500)-I154,"") -> 
A155: 2012 | B155: 4 | C155: 76403 | D155: SUM IR 0077 24.29 | E155: Bridge Deck Replacement | F155: Seven Bridge re-decks. Miscellaneous bridge work. | G155: 7528050.448 | H155: 6813755 | I155: 7528050.448 | J155: =IF(B155="Subtotal",SUMIF($A$4:$A$500,A155,$I$4:$I$500)-I155,"") -> 
A156: 2012 | B156: 4 | C156: 91094 | D156: POR IR 0076 (3.93)(4.74) | E156: Bridge Deck Replacement | F156: Re-deck and painting of two structures. | G156: 2023635.659 | H156: 1863992.65 | I156: 2023635.659 | J156: =IF(B156="Subtotal",SUMIF($A$4:$A$500,A156,$I$4:$I$500)-I156,"") -> 
A157: 2012 | B157: 6 | C157: 82359 | D157: UNI CR 338 0.39 | E157: Bridge Replacement | F157: CEAO FUNDED BRIDGE REPLACEMENT PROJECT.UNI-CR338-0.39 (COBB-HARRIMAN ROAD) OVER RUSH CREEK (JACKSON TOWNSHIP).DESIGN/BUILD PROJECT. | G157: 964007.531 | H157: 922412 | I157: 964007.531 | J157: =IF(B157="Subtotal",SUMIF($A$4:$A$500,A157,$I$4:$I$500)-I157,"") -> 
A158: 2012 | B158: 6 | C158: 86916 | D158: MRW IR 71 12.190 | E158: Major Widening | F158: Full depth pavement replacement with addition of third median lane in each direction.Multi-lane Reconstruction funding. Pvmt work - 19% NH and 81% IM approved by S Lowry via e-mail dated 11/4/10.Env phase also for PID's 86920 & 86921D6 Environmental Co | G158: 45784459.45 | H158: 44205370 | I158: 45784459.45 | J158: =IF(B158="Subtotal",SUMIF($A$4:$A$500,A158,$I$4:$I$500)-I158,"") -> 
A159: 2012 | B159: 6 | C159: 86921 | D159: DEL IR 71 11.500 | E159: Major Widening | F159: Full depth pavement replacement and addition of 3rd median lane.Replace and widen ML Bridge MRW-71-3.00Env on PID 86916Consultant Project Manager - Jim Prevost | G159: 54157286.84 | H159: 53244740 | I159: 54157286.84 | J159: =IF(B159="Subtotal",SUMIF($A$4:$A$500,A159,$I$4:$I$500)-I159,"") -> 
A160: 2012 | B160: 6 | C160: 87948 | D160: FRA Various Noisewall Repair | E160: Noise Wall | F160: Repair damaged noisewalls along IR 71, IR 270, IR 670, and SR 315 in Franklin CountySR-315: SLM 5.18-6.17 (Ackerman Rd to Olentangy River Rd)IR-670: SLM 7.15-7.56 (US-62 to US-62/Fifth Ave)IR-71: SLM 18.75-19.09 (E Second Ave to 5th Ave)IR-71: SLM 24. | G160: 281000 | H160: 271150 | I160: 281000 | J160: =IF(B160="Subtotal",SUMIF($A$4:$A$500,A160,$I$4:$I$500)-I160,"") -> 
A161: 2012 | B161: 8 | C161: 84444 | D161: HAM SR 562 0004L | E161: Bridge Deck Replacement | F161: Rehabilitate Bridge HAM-562-0.04L by replacing the concrete deck and including other related rehabilitation work.Design Build project. | G161: 800490.581 | H161: 719370 | I161: 800490.581 | J161: =IF(B161="Subtotal",SUMIF($A$4:$A$500,A161,$I$4:$I$500)-I161,"") -> 
A162: 2012 | B162: 8 | C162: 87172 | D162: CLI US 68 14.39 | E162: Bridge Replacement | F162: Replace bridge CLI-68-1443 (SFN 1401173) over Lytle Creek in the City of Wilmington. | G162: 1096654.779 | H162: 901550 | I162: 1096654.779 | J162: =IF(B162="Subtotal",SUMIF($A$4:$A$500,A162,$I$4:$I$500)-I162,"") -> 
A163: 2012 | B163: 11 | C163: 84331 | D163: BEL SR 7 6.110 | E163: Signs | F163: Upgrading existing sigining along SR 7 including the signing at the interchanges in Belmont and Jefferson counties. | G163: 1031177.422 | H163: 980920 | I163: 1031177.422 | J163: =IF(B163="Subtotal",SUMIF($A$4:$A$500,A163,$I$4:$I$500)-I163,"") -> 
A164: 2012 | B164: No. of Projects | C164: =SUBTOTAL(3,C151:C163) -> 13 | I164: 0 | J164: =IF(B164="Subtotal",SUMIF($A$4:$A$500,A164,$I$4:$I$500)-I164,"") -> 
A165: 2012 | B165: Subtotal | C165: _ | H165: 119381748.3 | I165: 119381748.3 | J165: =IF(B165="Subtotal",SUMIF($A$4:$A$500,A165,$I$4:$I$500)-I165,"") -> 119381748.3
A166: 2013 | B166: 2 | C166: 93473 | D166: D02 GR FY2013 Safety | E166: Guardrail Maintenance/Repair (NEW) | F166: A safety funded project to upgarde guardrail at various D-2 locations, perform necessary related work | G166: 3389889.244 | H166: 3126670 | I166: 3389889.244 | J166: =IF(B166="Subtotal",SUMIF($A$4:$A$500,A166,$I$4:$I$500)-I166,"") -> 
A167: 2013 | B167: 3 | C167: 82257 | D167: RIC IR 0071 SYSSIGN FY2013 | E167: Signs | F167: Design Build - Supports and signs on those supports along RIC/ASD/WAY 71Project to include Sign Structures that were to be replaced with PID:82254 ASD IR 0071 SYSSIGN FY2012Plan filed as: RIC-71-12.93, ASD-71/60-0.00/15.28, WAY-71-0.00 | G167: 910962.791 | H167: 878790 | I167: 910962.791 | J167: =IF(B167="Subtotal",SUMIF($A$4:$A$500,A167,$I$4:$I$500)-I167,"") -> 
A168: 2013 | B168: 3 | C168: 93717 | D168: LOR Boston Road R/R Xing | E168: Spot Safety | F168: Improve vertical profile to meet 45MPH design speed criteriaReplace existing pavementReplace small culvert | G168: 662092.636 | H168: 595790 | I168: 662092.636 | J168: =IF(B168="Subtotal",SUMIF($A$4:$A$500,A168,$I$4:$I$500)-I168,"") -> 
A169: 2013 | B169: 4 | C169: 76411 | D169: TRU IR 0080 04.70 | E169: Minor Rehabilitation - Pavement Prmy Sys | F169: Minor rehabilitation with bridge work. | G169: 10643704.93 | H169: 10060290 | I169: 10643704.93 | J169: =IF(B169="Subtotal",SUMIF($A$4:$A$500,A169,$I$4:$I$500)-I169,"") -> 
A170: 2013 | B170: 6 | C170: 82357 | D170: UNI CR 110 1.16 | E170: Bridge Replacement | F170: CEAO FUNDED BRIDGE REPLACEMENT PROJECT.UNI-CR110-1.16 (DELAWARE COUNTY LINE ROAD) OVER BLUES CREEK. DOVER TOWNSHIP. | G170: 849996.682 | H170: 858466 | I170: 849996.682 | J170: =IF(B170="Subtotal",SUMIF($A$4:$A$500,A170,$I$4:$I$500)-I170,"") -> 
A171: 2013 | B171: 6 | C171: 83245 | D171: MAD IR 70 10.270 Phase 1 | E171: Interchange, Reconstruction | F171: Improve MAD IR 70 at SR 29 interchange by constructing a roundabout at the IR 70 WB on and off ramps, widen SR 29 to accommodate the roundabout, and widen the EB off ramp. This PID to include environmental clearance for the footprint of work on the south | G171: 3859420.64 | H171: 3897880 | I171: 3859420.64 | J171: =IF(B171="Subtotal",SUMIF($A$4:$A$500,A171,$I$4:$I$500)-I171,"") -> 
A172: 2013 | B172: 6 | C172: 83958 | D172: PIC SR 674 4.210 | E172: Bridge Replacement | F172: Bridge Replacement and widening of structure over Turkey Run | G172: 1195602.721 | H172: 1040600 | I172: 1195602.721 | J172: =IF(B172="Subtotal",SUMIF($A$4:$A$500,A172,$I$4:$I$500)-I172,"") -> 
A173: 2013 | B173: 6 | C173: 86298 | D173: FRA US 62 32.780 | E173: Bridge Deck Replacement | F173: Bridge Replacement over Blacklick Creek. Single-span steel beam.Design Build Project. No R/W. FY12 Reservoir. | G173: 597732.668 | H173: 552050 | I173: 597732.668 | J173: =IF(B173="Subtotal",SUMIF($A$4:$A$500,A173,$I$4:$I$500)-I173,"") -> 
A174: 2013 | B174: 6 | C174: 86920 | D174: MRW IR 71 3.170 | E174: Major Widening | F174: Full depth replacement and addition of 3rd median lane.Remove mainline bridge SLM 5.96 over abandoned RR.Bridge painting of overhead structure, sealing of mainline structuresEnv on PID 86916D6 Environmental Coordinator - Brian Tatman | G174: 56417829.46 | H174: 54151050 | I174: 56417829.46 | J174: =IF(B174="Subtotal",SUMIF($A$4:$A$500,A174,$I$4:$I$500)-I174,"") -> 
A175: 2013 | B175: 6 | C175: 92610 | D175: FRA IR 270 52.720 | E175: Major Widening | F175: Major Rehab Funding. Final design and construction of the widening of I-270 between I-71 and US-23 on south side of Columbus. Replace the mainline pavement with a 20 year design. Widening of the mainline pavement to accommodate one (1) additional throu | H175: 28380000 | I175: 28380000 | J175: =IF(B175="Subtotal",SUMIF($A$4:$A$500,A175,$I$4:$I$500)-I175,"") -> 
A176: 2013 | B176: 6 | C176: 93159 | D176: FRA IR 270 35.520 (Noise Wall) | E176: Noise Wall | F176: Design build noise wall on I-270 from Johnstown Rd to Goshen Lane (north side of I-270 near I-670).FY13 noise wall funding | G176: 730382.171 | H176: 683760 | I176: 730382.171 | J176: =IF(B176="Subtotal",SUMIF($A$4:$A$500,A176,$I$4:$I$500)-I176,"") -> 
A177: 2013 | B177: 7 | C177: 91984 | D177: DAR SR 705 9.02/9.47/10.33 | E177: Bridge Replacement | F177: Three span concrete slab deck removal and replacement with minimal approach work, possible guardrail end treatment upgrades.SFN 1903845 Darke 705 0947 over Holsapple DitchSFN 1903969 Darke 705 1033 over East Branch Baurers DitchSFN 1903810 Darke 705 0902 | G177: 1167875.209 | H177: 1019480 | I177: 1167875.209 | J177: =IF(B177="Subtotal",SUMIF($A$4:$A$500,A177,$I$4:$I$500)-I177,"") -> 
A178: 2013 | B178: 8 | C178: 90412 | D178: PRE CR18/TR150 1.55/1.35 Des-Bld | E178: Bridge Replacement | F178: Project involves the replacement of the structurally deficient Bridge No. PRE-CR18-0155 (SFN: 6836267), which carries California School Road (CR-18) over Four Mile Creek and the replacement of structurally deficient Bridge No. PRE-TR 15-0135 (SFN: 6839401 | H178: 832091 | I178: 832091 | J178: =IF(B178="Subtotal",SUMIF($A$4:$A$500,A178,$I$4:$I$500)-I178,"") -> 
A179: 2013 | B179: 8 | C179: 90413 | D179: PRE CR 80 0.12 Des-Build Br Repl | E179: Bridge Replacement | F179: Project includes replacing structurally deficient Bridge No. PRE-CR 80-0010 (SFN: 6835643) which carries Barnets Mill Road (CR-80) over Seven Mile Creek. Work includes minor approach work, pavement repairs, and vertical alignment adjustments, as necessary | H179: 725910 | I179: 725910 | J179: =IF(B179="Subtotal",SUMIF($A$4:$A$500,A179,$I$4:$I$500)-I179,"") -> 
A180: 2013 | B180: 8 | C180: 90897 | D180: BUT Lakota SRTS | E180: Signs | F180: Install sidewalks along Beckett Ridge, Beckett Station, and Spruce Roads. Upgrade school signing in the vicinity of Freedom Elementary and Lakota Rigde Schools. | G180: 344377.481 | H180: 334884 | I180: 344377.481 | J180: =IF(B180="Subtotal",SUMIF($A$4:$A$500,A180,$I$4:$I$500)-I180,"") -> 
A181: 2013 | B181: 8 | C181: 90962 | D181: PRE TR218 0.20 Des-Build Br Repl | E181: Bridge Replacement | F181: Project involves replacement of the structurally deficient Bridge No. PRE-TR 218-0020 (SFN: 6836402), which carries Concord-Fairhaven Road (TR-218) over Four Mile Creek. Work includes minor approach work, pavement repairs, and vertical alignment adjustmen | H181: 531300 | I181: 531300 | J181: =IF(B181="Subtotal",SUMIF($A$4:$A$500,A181,$I$4:$I$500)-I181,"") -> 
A182: 2013 | B182: 8 | C182: 91685 | D182: GRE CR25 2.48 Des-Build Br Rehab | E182: Bridge Deck Replacement | F182: Repair deteriorated bridge by replacing the existing box beams, minor repairs to the existing abutments and wingwalls, installation of guardrail, and a new wearing surface. Design Build project. | G182: 324022.407 | H182: 346044 | I182: 324022.407 | J182: =IF(B182="Subtotal",SUMIF($A$4:$A$500,A182,$I$4:$I$500)-I182,"") -> 
A183: 2013 | B183: 8 | C183: 91951 | D183: CLE E. Fork State Park Resurface | E183: Mill and Fill | F183: Design-Build project will resurface roadways and parking areas within East Fork State Park in Clermont County. | G183: 2236632.494 | H183: 2064180 | I183: 2236632.494 | J183: =IF(B183="Subtotal",SUMIF($A$4:$A$500,A183,$I$4:$I$500)-I183,"") -> 
A184: 2013 | B184: 8 | C184: 92236 | D184: HAM IR 275 24.40 | E184: Drainage Improvement | F184: Drainage improvement in the ramp infields of Ramps C & D of the interchange of I-275 and SR 747 in Hamilton County. | G184: 214398.643 | H184: 187720 | I184: 214398.643 | J184: =IF(B184="Subtotal",SUMIF($A$4:$A$500,A184,$I$4:$I$500)-I184,"") -> 
A185: 2013 | B185: 9 | C185: 80094 | D185: SCI US 52 16.75 | E185: Minor Rehabilitation - Pavement Prmy Sys | F185: It is proposed to repair and the resurface the highway. | G185: 13160114.39 | H185: 12606500 | I185: 13160114.39 | J185: =IF(B185="Subtotal",SUMIF($A$4:$A$500,A185,$I$4:$I$500)-I185,"") -> 
A186: 2013 | B186: 9 | C186: 91922 | D186: D09 Scioto Trail & ShawneeForest | E186: Culvert Construction/Reconstr/Repair | F186: In Shawnee State Forest, it is proposed to repair/replace 43 culverts on Forest Road #1, 66 culverts on Forest Road #2, and 3 culverts on Forest Road #16. The work ranges from placing headwalls at the inlet, replacing some deteriorated corrugated metal pi | G186: 639002.582 | H186: 657100 | I186: 639002.582 | J186: =IF(B186="Subtotal",SUMIF($A$4:$A$500,A186,$I$4:$I$500)-I186,"") -> 
A187: 2013 | B187: 10 | C187: 83703 | D187: WAS CR 14 0.060 | E187: Bridge Replacement | F187: Bridge replacement project over the Little Musking River. WAS CR 14 0.06, SFN 8430403. CEAO funded project using Credit Bridge. | G187: 1233319.891 | H187: 1146638.04 | I187: 1233319.891 | J187: =IF(B187="Subtotal",SUMIF($A$4:$A$500,A187,$I$4:$I$500)-I187,"") -> 
A188: 2013 | B188: 11 | C188: 81486 | D188: BEL SR 7 11.870 | E188: Minor Rehabilitation - Pavement Prmy Sys | F188: Priority System minor rehabilation of existing concrete pavement: minimal joint repair, overlay with asphalt, replace median barrier, replace guardrail. The project will also include minor deck patching on bridges within the project limits. | G188: 3524504.69 | H188: 3375340 | I188: 3524504.69 | J188: =IF(B188="Subtotal",SUMIF($A$4:$A$500,A188,$I$4:$I$500)-I188,"") -> 
A189: 2013 | B189: 11 | C189: 84332 | D189: COL US 30 34.40 | E189: Signs | F189: Upgrade existing signing along US 30 and SR 39 in Columbiana County and along US 22 in Jefferson County. This includes all signing at the interchanges along these routes. | G189: 593857.558 | H189: 557870 | I189: 593857.558 | J189: =IF(B189="Subtotal",SUMIF($A$4:$A$500,A189,$I$4:$I$500)-I189,"") -> 
A190: 2013 | B190: 12 | C190: 92951 | D190: CUY IR 090 18.15 | E190: Bridge Deck Replacement | F190: Replace the deck of the South Marginal Rd bridge over IR-90 in Cleveland. | G190: 854272.674 | H190: 807790 | I190: 854272.674 | J190: =IF(B190="Subtotal",SUMIF($A$4:$A$500,A190,$I$4:$I$500)-I190,"") -> 
A191: 2013 | B191: No. of Projects | C191: =SUBTOTAL(3,C166:C190) -> 25 | I191: 0 | J191: =IF(B191="Subtotal",SUMIF($A$4:$A$500,A191,$I$4:$I$500)-I191,"") -> 
A192: 2013 | B192: Subtotal | C192: _ | H192: 134019293 | I192: 134019293 | J192: =IF(B192="Subtotal",SUMIF($A$4:$A$500,A192,$I$4:$I$500)-I192,"") -> 134019293
A193: 2014 | B193: 3 | C193: 93093 | D193: RIC SR 0096 13.41 | E193: Bridge Deck Replacement | F193: Box Beam Replacement @ RIC-096-13.41 | H193: 403907 | I193: 403907 | J193: =IF(B193="Subtotal",SUMIF($A$4:$A$500,A193,$I$4:$I$500)-I193,"") -> 
A194: 2014 | B194: 4 | C194: 76340 | D194: STA US 62/62T/173/183/225 VAR | E194: Bridge Deck Replacement | F194: Re-Deck of 2 bridges (Beeson & Vine) and Miscellaneous bridge work to 9 structures. | H194: 5086000 | I194: 5086000 | J194: =IF(B194="Subtotal",SUMIF($A$4:$A$500,A194,$I$4:$I$500)-I194,"") -> 
A195: 2014 | B195: 4 | C195: 84754 | D195: MAH IR 680 12.10/14.37 | E195: Bridge Replacement | F195: Bridge replacement and widening. Construct a Westbound right turn lane on Western Reserve Road at the intersection with the IR-680 Northbound on-ramp. Resurfacing of IR-680 from US-224 to Ohio Turnpike, with minor bridge work. | H195: 8822000 | I195: 8822000 | J195: =IF(B195="Subtotal",SUMIF($A$4:$A$500,A195,$I$4:$I$500)-I195,"") -> 
A196: 2014 | B196: 4 | C196: 88372 | D196: POR Rock Spring (CR 0052) 02.78 | E196: Bridge Repair | F196: Bridge rehabilitation.Credit Bridge funding being utilized. MAXed at $340,650. | H196: 1760000 | I196: 1760000 | J196: =IF(B196="Subtotal",SUMIF($A$4:$A$500,A196,$I$4:$I$500)-I196,"") -> 
A197: 2014 | B197: 4 | C197: 89458 | D197: SUM IR 0271 12.62 | E197: Major Reconstruction | F197: Widening from four to six lanes, including the replacing and widening of four structures (Over SR82 and over Conrail RR). | H197: 62000000 | I197: =IF(G197="",H197,G197) -> 62000000 | J197: =IF(B197="Subtotal",SUMIF($A$4:$A$500,A197,$I$4:$I$500)-I197,"") -> 
A198: 2014 | B198: 4 | C198: 93445 | D198: SUM SR 0008 16.66 | E198: Noise Wall | F198: Construction of noise wall. | H198: 5500000 | I198: 5500000 | J198: =IF(B198="Subtotal",SUMIF($A$4:$A$500,A198,$I$4:$I$500)-I198,"") -> 
A199: 2014 | B199: 4 | C199: 94516 | D199: MAH US 0422 03.62 | E199: Bridge Deck Replacement | F199: Bridge re-deck of sfn# 5004434, provide repairs to slope protection, including steel retaining wall. Replace signing. In the City of Youngstown, Mahoning County, Ohio. | H199: 2075000 | I199: 2075000 | J199: =IF(B199="Subtotal",SUMIF($A$4:$A$500,A199,$I$4:$I$500)-I199,"") -> 
A200: 2014 | B200: 6 | C200: 83340 | D200: UNI CR 84 0.261 | E200: Bridge Replacement | F200: Replace existing steel truss bridge with a new structure.Over Little Darby Creek.Local-let with Union County as lead agency. | H200: 1108400 | I200: 1108400 | J200: =IF(B200="Subtotal",SUMIF($A$4:$A$500,A200,$I$4:$I$500)-I200,"") -> 
... 301 more rows

Sheet Work Types
B3: Values
A4: Project Work Category by Year | B4: No. of Projects | C4: Sum Amount
A5: - | B5: 8 | C5: 0
A6: Signs | B6: 4 | C6: 0
A7: Intersection Improvement | B7: 1 | C7: 0
A8: Noise Wall | B8: 1 | C8: 0
A9: Bridge Repair | B9: 2 | C9: 0
A11: 1998 | B11: 1 | C11: 15126788.73
A12: New Construction | B12: 1 | C12: 15126788.73
A14: 2000 | B14: 6 | C14: 124158914.7
A15: Major Reconstruction | B15: 3 | C15: 49031423.16
A16: Bridge Replacement | B16: 1 | C16: 3228037.601
A17: Major Widening | B17: 1 | C17: 49534522.07
A18: Minor Rehabilitation - Pavement Prmy Sys | B18: 1 | C18: 22364931.91
A20: 2001 | B20: 11 | C20: 104694185.8
A21: Bridge Repair | B21: 3 | C21: 4945616.337
A22: Bridge Replacement | B22: 1 | C22: 4508109.042
A23: Minor Rehabilitation - Pavement Prmy Sys | B23: 1 | C23: 16821520.43
A24: Resurfacing, Divided System | B24: 5 | C24: 74389024.21
A25: Resurfacing, Undivided System | B25: 1 | C25: 4029915.756
A27: 2002 | B27: 9 | C27: 5187434.155
A28: Bridge Repair | B28: 2 | C28: 1384513.139
A29: Bridge Replacement | B29: 6 | C29: 3676035.357
A30: Major Widening | B30: 1 | C30: 126885.659
A32: 2003 | B32: 23 | C32: 50050637.39
A33: Noise Wall | B33: 1 | C33: 571530.039
A34: Bridge Repair | B34: 6 | C34: 18801356.03
A35: Major Reconstruction | B35: 1 | C35: 5260233.957
A36: Bridge Replacement | B36: 11 | C36: 8254862.939
A37: Resurfacing, Divided System | B37: 2 | C37: 14386797.02
A38: Lighting | B38: 1 | C38: 2251812.016
A39: Culvert Construction/Reconstr/Repair | B39: 1 | C39: 524045.395
A41: 2004 | B41: 7 | C41: 12047053.78
A42: Signs | B42: 3 | C42: 1526739.438
A43: Noise Wall | B43: 1 | C43: 7891961.24
A44: Bridge Repair | B44: 1 | C44: 492600.624
A45: Bridge Replacement | B45: 1 | C45: 340560.019
A46: Resurfacing, Undivided System | B46: 1 | C46: 1795192.461
A48: 2005 | B48: 4 | C48: 33958855.45
A49: Noise Wall | B49: 1 | C49: 9338893.411
A50: Bridge Repair | B50: 1 | C50: 2323913.566
A51: Bridge Replacement | B51: 1 | C51: 440897.713
A52: Major Rehabilitation | B52: 1 | C52: 21855150.76
A54: 2006 | B54: 4 | C54: 9070394.208
A55: Bridge Repair | B55: 2 | C55: 1563654.452
A56: Bridge Replacement | B56: 1 | C56: 1583075.581
A57: Resurfacing, Divided System | B57: 1 | C57: 5923664.175
A59: 2007 | B59: 2 | C59: 8042176.434
A60: Noise Wall | B60: 1 | C60: 6408455.504
A61: Bridge Replacement | B61: 1 | C61: 1633720.93
A63: 2008 | B63: 5 | C63: 9426925.994
A64: Noise Wall | B64: 1 | C64: 4435007.752
A65: Bridge Repair | B65: 3 | C65: 4457323.911
A66: Bridge Replacement | B66: 1 | C66: 534594.331
A68: 2009 | B68: 5 | C68: 14069570.89
A69: Signs | B69: 1 | C69: 459783.527
A70: Bridge Repair | B70: 1 | C70: 10971100.43
A71: Bridge Replacement | B71: 2 | C71: 1377672.206
A72: Slide Repair | B72: 1 | C72: 1261014.729
A74: 2010 | B74: 25 | C74: 85197364.75
A75: Signs | B75: 1 | C75: 779020.221
A76: Noise Wall | B76: 1 | C76: 5247566.085
A77: Bridge Repair | B77: 4 | C77: 15569160.75
A78: Major Reconstruction | B78: 1 | C78: 25534892.59
A79: Bridge Replacement | B79: 5 | C79: 4588129.88
A80: Minor Rehabilitation - Pavement Prmy Sys | B80: 1 | C80: 7018498.161
A81: Major Rehabilitation | B81: 2 | C81: 12417354.06
A82: Bridge Deck Replacement | B82: 5 | C82: 9780768.089
A83: Bridge Maintenance | B83: 1 | C83: 266187.597
A84: Inter-modal Facility | B84: 2 | C84: 3634702.325
A85: Buildings - Mix Shed,etc. | B85: 2 | C85: 361085
A87: 2011 | B87: 19 | C87: 582665386.8
A88: Signs | B88: 1 | C88: 1324784.302
A89: Bridge Repair | B89: 1 | C89: 1910364.341
A90: Major Reconstruction | B90: 1 | C90: 218210658.9
A91: Bridge Replacement | B91: 7 | C91: 13090586.83
A92: Minor Rehabilitation - Pavement Prmy Sys | B92: 2 | C92: 25015927.52
A93: Culvert Construction/Reconstr/Repair | B93: 1 | C93: 161111.579
A94: Bridge Deck Replacement | B94: 2 | C94: 1891125.098
A95: Salt Dome | B95: 1 | C95: 762403.101
A96: Signing | B96: 1 | C96: 5220095.612
A97: Noise Wall Maintenance/Repair (NEW) | B97: 1 | C97: 2057399.225
A98: New Bridge | B98: 1 | C98: 313020930.2
A100: 2012 | B100: 13 | C100: 119381748.3
A101: Signs | B101: 2 | C101: 2075043.41
A102: Noise Wall | B102: 1 | C102: 281000
A103: Bridge Repair | B103: 1 | C103: 4192732.384
A104: Bridge Replacement | B104: 2 | C104: 2060662.31
A105: Major Widening | B105: 2 | C105: 99941746.28
A106: Bridge Deck Replacement | B106: 3 | C106: 10352176.69
A107: Dock Facilities | B107: 1 | C107: 374918.26
A108: Facility Renovation | B108: 1 | C108: 103468.992
A110: 2013 | B110: 25 | C110: 134019293
A111: Signs | B111: 3 | C111: 1849197.83
A112: Noise Wall | B112: 1 | C112: 730382.171
A113: Bridge Replacement | B113: 7 | C113: 6536095.503
A114: Major Widening | B114: 2 | C114: 84797829.46
A115: Minor Rehabilitation - Pavement Prmy Sys | B115: 3 | C115: 27328324.01
A116: Culvert Construction/Reconstr/Repair | B116: 1 | C116: 639002.582
A117: Bridge Deck Replacement | B117: 3 | C117: 1776027.749
A118: Guardrail Maintenance/Repair (NEW) | B118: 1 | C118: 3389889.244
A119: Spot Safety | B119: 1 | C119: 662092.636
A120: Interchange, Reconstruction | B120: 1 | C120: 3859420.64
A121: Mill and Fill | B121: 1 | C121: 2236632.494
A122: Drainage Improvement | B122: 1 | C122: 214398.643
A124: 2014 | B124: 24 | C124: 598452360.8
A125: Intersection Improvement | B125: 1 | C125: 2482300
A126: Noise Wall | B126: 1 | C126: 5500000
A127: Bridge Repair | B127: 3 | C127: 15257000
A128: Major Reconstruction | B128: 2 | C128: 112439046.7
A129: Bridge Replacement | B129: 4 | C129: 376764856
A130: Major Rehabilitation | B130: 1 | C130: 33500000
A131: Bridge Deck Replacement | B131: 7 | C131: 12572443
A132: Spot Safety | B132: 1 | C132: 2700000
A133: Interchange, Reconstruction | B133: 1 | C133: 13432600
A134: Section Improvement | B134: 1 | C134: 5905000
A135: Minor Rehabilitation - Pavement Gnrl Sys | B135: 1 | C135: 15622000
A136: Turn Lane Addition | B136: 1 | C136: 2277115.15
A138: 2015 | B138: 5 | C138: 56011089.95
A139: Bridge Repair | B139: 1 | C139: 440000
A140: Bridge Replacement | B140: 2 | C140: 2808289.95
A141: Major Widening | B141: 1 | C141: 51500000
A142: Bridge Deck Replacement | B142: 1 | C142: 1262800
A144: 2016 | B144: 6 | C144: 153418300
A145: Bridge Replacement | B145: 2 | C145: 2121400
A146: Minor Rehabilitation - Pavement Prmy Sys | B146: 1 | C146: 16663900
A147: Major Rehabilitation | B147: 1 | C147: 134269000
A148: Interchange, Reconstruction | B148: 1 | C148: 0
A149: Signals | B149: 1 | C149: 364000
A151: 2017 | B151: 2 | C151: 11743000
A152: Bridge Replacement | B152: 1 | C152: 1043000
A153: New Bridge | B153: 1 | C153: 10700000
A155: 2018 | B155: 5 | C155: 402845785
A156: Noise Wall | B156: 1 | C156: 1100000
A157: Bridge Replacement | B157: 3 | C157: 2795785
A158: Major Rehabilitation | B158: 1 | C158: 398950000
A160: 2025 | B160: 1 | C160: 11000000
A161: Interchange, Reconstruction | B161: 1 | C161: 11000000
A163: Grand Total | B163: 210 | C163: 2540567266

Sheet Data from CAS-TAS
A1: Design Build Projects as recorded in ODOT CMS computer system
A2: Query: Design Build_ImportPID from Ellis (run in CAS-TAS) | H2: Updated: | I2: 2013-06-05T17:41:46
A3: District | B3: PID | C3: Project Number | D3: Project Status | E3: Original Contract Amount ($) | F3: Total Paid-to-Date Amount ($) | G3: % Complete | H3: Letting Date | I3: Current Completion Date
A5: 8410 | B5: 7 | C5: 980233 | D5: Complete | E5: 13888653 | F5: 15435365.64 | G5: 100 | H5: 1998-05-13 | I5: 2001-09-20
A6: 11160 | B6: 7 | C6: 993001 | D6: Complete | E6: 45480095 | F6: 51280525.34 | G6: 99.38 | H6: 2000-02-01 | I6: 2004-08-18
A7: 18200 | B7: 3 | C7: 3002 | D7: Complete | E7: 17312975 | F7: 19709213.63 | G7: 100 | H7: 2000-03-01 | I7: 2002-10-31
A8: 18703 | B8: 4 | C8: 3005 | D8: Complete | E8: 2963821 | F8: 3330523.08 | G8: 104.72 | H8: 2000-03-15 | I8: 2001-08-01
A9: 18899 | B9: 8 | C9: 3003 | D9: Complete | E9: 20534350.29 | F9: 21107859.22 | G9: 99.82 | H9: 2000-03-15 | I9: 2002-09-15
A10: 20681 | B10: 6 | C10: 3009 | D10: Complete | E10: 3686600 | F10: 3905853.05 | G10: 100 | H10: 2000-04-12 | I10: 2002-01-18
A11: 20411 | B11: 4 | C11: 3008 | D11: Complete | E11: 24018600 | F11: 26030515.7 | G11: 100 | H11: 2000-05-16 | I11: 2003-06-30
A12: 21082 | B12: 1 | C12: 3010 | D12: Complete | E12: 2171900 | F12: 2308256.41 | G12: 100 | H12: 2000-09-27 | I12: 2001-11-25
A13: 19786 | B13: 8 | C13: 3012 | D13: Complete | E13: 29509560.28 | F13: 31747888.57 | G13: 99.73 | H13: 2000-11-08 | I13: 2005-09-15
A14: 17891 | B14: 3 | C14: 3015 | D14: Complete | E14: 13838853.46 | F14: 14801828.47 | G14: 100 | H14: 2000-11-29 | I14: 2002-08-31
A15: 18722 | B15: 4 | C15: 13000 | D15: Complete | E15: 4139117.91 | F15: 4215940.68 | G15: 99.55 | H15: 2001-01-24 | I15: 2002-10-30
A16: 12761 | B16: 11 | C16: 13003 | D16: Complete | E16: 9192000 | F16: 9816715.9 | G16: 100 | H16: 2001-02-07 | I16: 2003-03-18
A17: 21053 | B17: 10 | C17: 13001 | D17: Complete | E17: 1744180 | F17: 2082260.74 | G17: 99.95 | H17: 2001-02-14 | I17: 2002-08-09
A18: 22163 | B18: 4 | C18: 13002 | D18: Complete | E18: 4933370.39 | F18: 4990467.79 | G18: 100 | H18: 2001-02-14 | I18: 2002-06-30
A19: 12412 | B19: 8 | C19: 13006 | D19: Complete | E19: 15444670 | F19: 16099823.77 | G19: 100 | H19: 2001-02-21 | I19: 2002-10-22
A20: 19899 | B20: 4 | C20: 13005 | D20: Complete | E20: 624735 | F20: 648052.35 | G20: 100 | H20: 2001-02-21 | I20: 2002-05-30
A21: 19705 | B21: 8 | C21: 13009 | D21: Complete | E21: 10826458.74 | F21: 11863517.84 | G21: 100 | H21: 2001-03-20 | I21: 2005-10-15
A22: 19854 | B22: 4 | C22: 13010 | D22: Complete | E22: 3700065 | F22: 4366233.56 | G22: 100 | H22: 2001-04-25 | I22: 2002-08-31
A23: 21713 | B23: 8 | C23: 13011 | D23: Complete | E23: 241400 | F23: 238398.27 | G23: 100 | H23: 2001-09-05 | I23: 2002-08-23
A24: 21490 | B24: 1 | C24: 13012 | D24: Complete | E24: 329590 | F24: 333706 | G24: 98.41 | H24: 2001-10-03 | I24: 2002-07-06
A25: 22516 | B25: 2 | C25: 13014 | D25: Complete | E25: 941600 | F25: 361098.91 | G25: 100 | H25: 2001-12-12 | I25: 2002-10-31
A26: 19669 | B26: 7 | C26: 13013 | D26: Complete | E26: 281450 | F26: 286494 | G26: 100 | H26: 2001-12-19 | I26: 2003-05-01
A27: 22174 | B27: 4 | C27: 23000 | D27: Complete | E27: 9259925 | F27: 9560630.25 | G27: 100 | H27: 2002-09-25 | I27: 2004-09-05
A28: 22229 | B28: 4 | C28: 23001 | D28: Complete | E28: 1410800 | F28: 1474224.02 | G28: 100 | H28: 2002-09-25 | I28: 2003-08-31
A29: 24384 | B29: 7 | C29: 23002 | D29: Complete | E29: 215850 | F29: 215850 | G29: 100 | H29: 2002-09-25 | I29: 2003-05-24
A30: 19791 | B30: 4 | C30: 23003 | D30: Complete | E30: 4764330 | F30: 6391719.57 | G30: 100 | H30: 2002-11-20 | I30: 2004-10-28
A31: 18718 | B31: 4 | C31: 23004 | D31: Complete | E31: 999400 | F31: 1046734 | G31: 102.94 | H31: 2002-11-22 | I31: 2003-11-15
A32: 12769 | B32: 6 | C32: 23006 | D32: Complete | E32: 2724570 | F32: 4297652.42 | G32: 113.17 | H32: 2002-12-06 | I32: 2004-10-07
A33: 19821 | B33: 5 | C33: 23005 | D33: Complete | E33: 1997110 | F33: 2412918.2 | G33: 108.83 | H33: 2002-12-06 | I33: 2005-10-09
A34: 20996 | B34: 11 | C34: 23008 | D34: Complete | E34: 8444900 | F34: 9857105.96 | G34: 100 | H34: 2002-12-18 | I34: 2004-06-30
A35: 23929 | B35: 4 | C35: 23007 | D35: Complete | E35: 2067500 | F35: 2075212 | G35: 100 | H35: 2002-12-18 | I35: 2004-06-12
A36: 24369 | B36: 5 | C36: 33000 | D36: Complete | E36: 481152 | F36: 494650 | G36: 104.21 | H36: 2003-01-08 | I36: 2003-10-31
A37: 23997 | B37: 6 | C37: 33001 | D37: Complete | E37: 524750 | F37: 530171.91 | G37: 100 | H37: 2003-02-12 | I37: 2004-05-12
A38: 24102 | B38: 2 | C38: 33002 | D38: Complete | E38: 1648255 | F38: 1924836.97 | G38: 99.97 | H38: 2003-09-24 | I38: 2004-09-10
A39: 19572 | B39: 11 | C39: 33003 | D39: Complete | E39: 543450 | F39: 540950 | G39: 100 | H39: 2003-10-22 | I39: 2005-04-30
A40: 19575 | B40: 11 | C40: 33004 | D40: Complete | E40: 523825 | F40: 600366.31 | G40: 100 | H40: 2003-10-22 | I40: 2005-10-31
A41: 19670 | B41: 7 | C41: 33005 | D41: Complete | E41: 312685 | F41: 332462.65 | G41: 100 | H41: 2003-10-22 | I41: 2004-08-30
A42: 75172 | B42: 2 | C42: 33006 | D42: Complete | E42: 334500 | F42: 446670.7 | G42: 99.78 | H42: 2003-11-19 | I42: 2004-08-03
A43: 21607 | B43: 1 | C43: 33007 | D43: Complete | E43: 452281 | F43: 442893.63 | G43: 100 | H43: 2003-12-03 | I43: 2004-09-01
A44: 75280 | B44: 6 | C44: 43000 | D44: Complete | E44: 7246000 | F44: 5852910.89 | G44: 100 | H44: 2004-03-24 | I44: 2006-10-15
A45: 25295 | B45: 7 | C45: 43001 | D45: Complete | E45: 404810 | F45: 398314 | G45: 100 | H45: 2004-09-22 | I45: 2005-06-15
A46: 76564 | B46: 6 | C46: 43002 | D46: Complete | E46: 2133700 | F46: 2303861.04 | G46: 102.67 | H46: 2004-11-23 | I46: 2008-09-27
A47: 76160 | B47: 10 | C47: 53000 | D47: Complete | E47: 20066295 | F47: 21611278.73 | G47: 100 | H47: 2005-02-02 | I47: 2007-09-01
A48: 75279 | B48: 6 | C48: 53001 | D48: Complete | E48: 8574500 | F48: 8826800.96 | G48: 100 | H48: 2005-06-08 | I48: 2007-05-27
A49: 25499 | B49: 8 | C49: 53002 | D49: Complete | E49: 5438809.1 | F49: 5523297.59 | G49: 99.95 | H49: 2005-09-21 | I49: 2006-11-28
A50: 25072 | B50: 4 | C50: 53003 | D50: Complete | E50: 603818.5 | F50: 605275.83 | G50: 100 | H50: 2005-12-02 | I50: 2006-10-15
A51: 23703 | B51: 4 | C51: 53004 | D51: Complete | E51: 831850 | F51: 804726.55 | G51: 98.24 | H51: 2005-12-14 | I51: 2006-10-22
A52: 79599 | B52: 12 | C52: 63000 | D52: Complete | E52: 5883920 | F52: 6253772.44 | G52: 100 | H52: 2006-09-06 | I52: 2008-06-03
A53: 23753 | B53: 4 | C53: 73000 | D53: Complete | E53: 1863902 | F53: 1846334.53 | G53: 100 | H53: 2007-10-12 | I53: 2009-06-30
A54: 75633 | B54: 8 | C54: 73001 | D54: Complete | E54: 1618150 | F54: 1638023.9 | G54: 100 | H54: 2007-10-12 | I54: 2009-07-31
A55: 20375 | B55: 3 | C55: 83000 | D55: Complete | E55: 610437.57 | F55: 606084.47 | G55: 100 | H55: 2008-01-25 | I55: 2008-10-24
A56: 81281 | B56: 6 | C56: 83001 | D56: Complete | E56: 4072000 | F56: 4124470.38 | G56: 100 | H56: 2008-06-04 | I56: 2009-07-31
A57: 80922 | B57: 11 | C57: 83002 | D57: Complete | E57: 422150 | F57: 421399 | G57: 100 | H57: 2008-09-24 | I57: 2009-12-31
A58: 25277 | B58: 4 | C58: 83003 | D58: Complete | E58: 10073110 | F58: 9983977.97 | G58: 100 | H58: 2008-10-08 | I58: 2010-11-19
A59: 23302 | B59: 8 | C59: 93001 | D59: Complete | E59: 1157800 | F59: 1156302.46 | G59: 100 | H59: 2009-04-29 | I59: 2011-05-31
A60: 84497 | B60: 8 | C60: 93002 | D60: Complete | E60: 6444030.34 | F60: 6644503.19 | G60: 100 | H60: 2009-07-15 | I60: 2011-09-15
A61: 78478 | B61: 11 | C61: 93003 | D61: Complete | E61: 715257 | F61: 749454.25 | G61: 100 | H61: 2009-09-30 | I61: 2011-01-03
A62: 25223 | B62: 4 | C62: 93004 | D62: Complete | E62: 12840852.35 | F62: 12936414.69 | G62: 100 | H62: 2009-11-04 | I62: 2011-11-15
A63: 76825 | B63: 11 | C63: 93005 | D63: Complete | E63: 23444848 | F63: 25158533.36 | G63: 100 | H63: 2009-12-09 | I63: 2012-06-18
A64: 85537 | B64: 6 | C64: 103001 | D64: Complete | E64: 4818050 | F64: 4889268.43 | G64: 100 | H64: 2010-02-25 | I64: 2011-08-10
A65: 81587 | B65: 11 | C65: 103002 | D65: Complete | E65: 4316685 | F65: 4468724.88 | G65: 100 | H65: 2010-03-25 | I65: 2011-07-12
A66: 82163 | B66: 1 | C66: 103004 | D66: Complete | E66: 1592220 | F66: 1622383.91 | G66: 100 | H66: 2010-05-06 | I66: 2011-11-18
A67: 87863 | B67: 11 | C67: 103003 | D67: Complete | E67: 135630 | F67: 135630 | G67: 100 | H67: 2010-05-07 | I67: 2011-06-06
A68: 84604 | B68: 3 | C68: 103007 | D68: Complete | E68: 695369 | F68: 675648.62 | G68: 97.97 | H68: 2010-05-13 | I68: 2011-09-01
A69: 87864 | B69: 11 | C69: 103005 | D69: Complete | E69: 195900 | F69: 195900 | G69: 100 | H69: 2010-05-21 | I69: 2010-12-23
A70: 80196 | B70: 3 | C70: 103011 | D70: Complete | E70: 659000 | F70: 693468.65 | G70: 100 | H70: 2010-06-03 | I70: 2011-09-30
A71: 83445 | B71: 3 | C71: 103014 | D71: Complete | E71: 924250 | F71: 928607.66 | G71: 100 | H71: 2010-06-03 | I71: 2011-09-30
A72: 83446 | B72: 3 | C72: 103009 | D72: Complete | E72: 457067 | F72: 455952.46 | G72: 100 | H72: 2010-06-03 | I72: 2011-10-12
A73: 86254 | B73: 3 | C73: 103013 | D73: Complete | E73: 1276600 | F73: 1331205.15 | G73: 100 | H73: 2010-06-03 | I73: 2012-05-15
A74: 87632 | B74: 12 | C74: 103010 | D74: Complete | E74: 3804674 | F74: 2720071.24 | G74: 71.29 | H74: 2010-06-03 | I74: 2011-10-23
A75: 87633 | B75: 12 | C75: 103012 | D75: Complete | E75: 2580180 | F75: 2310637.71 | G75: 89.5 | H75: 2010-06-03 | I75: 2011-11-13
A76: 87879 | B76: 11 | C76: 100397 | D76: Complete | E76: 731111.28 | F76: 706265.1 | G76: 100 | H76: 2010-06-03 | I76: 2010-10-10
A77: 84564 | B77: 1 | C77: 103015 | D77: Complete | E77: 659060.5 | F77: 635841.73 | G77: 100 | H77: 2010-07-29 | I77: 2011-08-26
A78: 85531 | B78: 12 | C78: 103000 | D78: Complete | E78: 287400000 | F78: 51065668.45 | G78: 17.67 | H78: 2010-08-05 | I78: 2014-09-30
A79: 25501 | B79: 4 | C79: 103016 | D79: Complete | E79: 10744152 | F79: 8812767.5 | G79: 81.2 | H79: 2010-10-07 | I79: 2012-05-17
A80: 79855 | B80: 9 | C80: 103018 | D80: Complete | E80: 1340680 | F80: 1343713.81 | G80: 100 | H80: 2010-10-21 | I80: 2012-05-07
A81: 86995 | B81: 4 | C81: 103017 | D81: Complete | E81: 1077275 | F81: 1082860.5 | G81: 100 | H81: 2010-10-21 | I81: 2011-10-17
A82: 87966 | B82: 4 | C82: 103019 | D82: Complete | E82: 1754000 | F82: 1743326 | G82: 100 | H82: 2010-10-21 | I82: 2011-11-30
A83: 84631 | B83: 4 | C83: 103021 | D83: Complete | E83: 782000 | F83: 761642.5 | G83: 100 | H83: 2010-12-02 | I83: 2011-09-30
A84: 84323 | B84: 11 | C84: 103020 | D84: Complete | E84: 1216350 | F84: 1231724.35 | G84: 100 | H84: 2010-12-16 | I84: 2012-05-15
A85: 88662 | B85: 3 | C85: 113002 | D85: Complete | E85: 147924.51 | F85: 152150.65 | G85: 100 | H85: 2011-03-24 | I85: 2012-05-15
A86: 88375 | B86: 3 | C86: 112006 | D86: Complete | E86: 700000 | F86: 646000 | G86: 92.29 | H86: 2011-06-03 | I86: 2012-05-15

Sheet data
A1: Award Date Fiscal Year | B1: District | C1: PID | D1: Project Name (ie CRS) | E1: Primary Work Category | F1: Project Description | G1: Awarded Sale Amount | H1: Construction Estimate (PE, R/W COSTS NOT INCLUDED) | I1: Amount | J1: Filtered Amount
A2: - | B2: 3 | C2: 87914 | D2: ASD SIGN REPLACEMENT FY2010 | E2: Signs | F2: Systematic Sign ReplacementUNSELECTED Stimulus 2 Design Build candidate - SJN:437971Removed Funds ($70,000 PE / $735,723 CO UNFU) and Sale and Award (FY2011) | I2: =IF(G2="",H2,G2) -> 0 | J2: =IF(G2<>0,G2,H2) -> 0
A3: - | B3: 3 | C3: 87915 | D3: LOR SIGN REPLACEMENT FY2010 | E3: Signs | F3: Systematic Sign ReplacementUNSELECTED Stimulus 2 Design Build candidate - SJN:437972Removed Funds ($168,000 PE / $1,662,615 CO UNFU) and Sale and Award (FY2011) | I3: 0 | J3: =IF(G3<>0,G3,H3) -> 0
A4: - | B4: 3 | C4: 87916 | D4: RIC SIGN REPLACEMENT FY2010 | E4: Signs | F4: Systematic Sign ReplacementUNSELECTED Stimulus 2 Design Build candidate - SJN:437973Removed Funds ($217,000 PE / $2,012,400 CO UNFU) and Sale and Award (FY2011) | I4: =IF(G4="",H4,G4) -> 0 | J4: 0
A5: - | B5: 3 | C5: 87917 | D5: WAY SIGN REPLACEMENT FY2010 | E5: Signs | F5: Systematic Sign Replacement Design Build - candidate | I5: =IF(G5="",H5,G5) -> 0 | J5: 0
A6: - | B6: 3 | C6: 96227 | D6: MED IR 0071 24.02 (SR303 RmpClr) | E6: Intersection Improvement | F6: FY2014 Design Acquire Build project (M May approved D-A-B in FY 2015)MED-071-24.02 - 24.22/MED-303-09.04Improve southbound exit from I-71 to SR 303 withexit ramp wideing/extending/restriping on I-71 and SR 303.(Scope of Services to be completed by Distric | I6: 0 | J6: 0
A7: - | B7: 8 | C7: 85630 | D7: HAM IR 71 2.80 | E7: Noise Wall | F7: Install type two noise barriers at various warranted locations within stated termini-stimulus project. Design Build project | I7: 0 | J7: 0
A8: - | B8: 8 | C8: 91719 | D8: HAM/WAR IR 71 19.89/0.09 | E8: Bridge Repair | F8: Rehabilitate bridges HAM-71-1989L/R and WAR-71-0009 L/R installing new rigid overlays and replacing the roadway barrier between the northbound bridges, and perfroming other minor bridge rehabilitation items. Project will be design build and combined with | I8: 0 | J8: 0
A9: - | B9: 12 | C9: 94577 | D9: CUY US 006 21.27 | E9: Bridge Repair | F9: Rehabilitate, replace, or otherwise upgrade the 15' stone arch drainage structure carrying Dugaway Brook under Euclid Avenue (US-6) located just east of Superior Avenue in East Cleveland. | I9: 0 | J9: 0
A10: 1998 | B10: 7 | C10: 8410 | D10: CLA US 68 12.52 | E10: New Construction | F10: CONSTRUCT A CONNECTION BETWEEN CLA-68-15.19 AND CHP-68-0.00, TO BETTER UTILIZE EXISTING L/A SECTION OF ROADWAY. DESIGN & BUILD PROJECT. | G10: 15126788.73 | H10: 15926877.4 | I10: 15126788.73 | J10: 15126788.73
A11: 2000 | B11: 3 | C11: 18200 | D11: MED IR 0271 00.00 | E11: Major Reconstruction | F11: PAVEMENT RECONSTRUCTION DESIGN BUILD PROJECT | G11: 18856379.75 | H11: 21362542.21 | I11: 18856379.75 | J11: 18856379.75
A12: 2000 | B12: 4 | C12: 18703 | D12: ATB SR 0045 19.92 | E12: Bridge Replacement | F12: WIDENING OF BRIDGE ATB-45-19.92 OVER IR 90. DESIGN/BUILD. HIGH PRIORITY PROJECT MAX $1,555,082. | G12: 3228037.601 | H12: 3133281.08 | I12: 3228037.601 | J12: 3228037.601
A13: 2000 | B13: 4 | C13: 20411 | D13: STA IR 0077 11.59 | E13: Major Reconstruction | F13: MAJOR UPGRADE TO INCLUDE MODIFICATIONS TO MAINLINE, RAMPS, SERVICE ROADS AND BRIDGES. ADD LANE BOTH DIRCTIONS; CONSTRUCT FOR 12874; TRC ON DIST BRIDGE ONLY. DBrelates to pids 20410, 20412, 10769 | G13: 26159793.02 | H13: 24905922.3 | I13: 26159793.02 | J13: 26159793.02
A14: 2000 | B14: 6 | C14: 20681 | D14: FRA IR 71 14.39 | E14: Major Reconstruction | F14: IR71: PARTIAL AND FULL DEPTH PAVT REPAIR PAVT INLAY. SR315: REMOVE/REPLACE PAVT A ND SUBBASE, CURB, INLETS. REPLACE CONC BARRIER, LIGHTS, SIGNS, GUARDRAIL. D/B. | G14: 4015250.388 | H14: 3758870.58 | I14: 4015250.388 | J14: 4015250.388
A15: 2000 | B15: 7 | C15: 11160 | D15: MIA IR 75 4.94 | E15: Major Widening | F15: ADD ADDITIONAL LANES AND RECONSTRUCT EXISTING ROADWAY, UPGRADE ALL STRUCTURES AND PROVIDE 16'6" VERTICAL CLEARANCE. REMOVE MIA-75-0733L&R.* MNC MAX $18MIL. | G15: 49534522.07 | H15: 50524044.44 | I15: 49534522.07 | J15: 49534522.07
A16: 2000 | B16: 8 | C16: 18899 | D16: PRE IR 70 0.00 | E16: Minor Rehabilitation - Pavement Prmy Sys | F16: PROJECT CONSISTS OF PLANING, SUPERPAVING, INSTALL RAISED PAVEMENT MARKERS, WIDENING MAINLINE BRIDGES, AND PAINTING 12 INTERSTATE BRIDGES. DESIGN/BUILD. COMBINED WITH PIDS 19391 AND 19411. | G16: 22364931.91 | H16: 21869858.88 | I16: 22364931.91 | J16: 22364931.91
A17: 2001 | B17: 1 | C17: 21082 | D17: ALL US30 18.18 | E17: Bridge Repair | F17: REPLACE DECKS ON STRUCTURES OVER IR75 AND NORFOLK SOUTHERN R.R. MICRO-SILICA OVERLAY DECKS ON STRUCTURES OVER NAPOLEON ROAD. NO R/W REQ'D. DESIGN BUILD. | G17: 2365518.992 | H17: 2514997 | I17: 2365518.992 | J17: 2365518.992
A18: 2001 | B18: 3 | C18: 17891 | D18: LOR IR 0090 10.76 | E18: Resurfacing, Divided System | F18: 4-LANE RESURFACING & BRIDGE DECK OVERLAY INCL. ADD A LANE SR611 TO EXIST 6-LANE ENVIRONMENTAL CLEARED WITH PID 11385 DESIGN BUILD PROJECT | G18: 15072549.7 | H18: 17843111.11 | I18: 15072549.7 | J18: 15072549.7
A19: 2001 | B19: 4 | C19: 18722 | D19: MAH SR 0011 16.04 | E19: Bridge Replacement | F19: MAJOR BRIDGE WORK ON MAH. SR 11 - 16.04 L, SB OVER I80 EB AND MAH. SR 11 - 16.15 L, SB OVER I 680 WB RAMP & SR 11-16.05L OVER IR80 EB.COMBINED W/CANCEL PID 19322 | G19: 4508109.042 | H19: 4266200 | I19: 4508109.042 | J19: 4508109.042
A20: 2001 | B20: 4 | C20: 19854 | D20: POR US 0224 00.00 | E20: Resurfacing, Undivided System | F20: TWO LANE RESURFACING FROM SUMMIT CO. TO SR183.SAFETY IMPRV. BY ADDING TURN LANE TO MARTIN, CONGRESS LAKE AND WATERLOO INTERSECTION. DESIGN BUILD PROJECT. | G20: 4029915.756 | H20: 3726804 | I20: 4029915.756 | J20: 4029915.756
A21: 2001 | B21: 4 | C21: 19899 | D21: ATB SR 0011 23.33 | E21: Bridge Repair | F21: REDECK, ABUT. CARSON ROAD OVER SR 11. DESIGN BUILD PROJECT. | G21: 680428.43 | H21: 607458.5 | I21: 680428.43 | J21: 680428.43
A22: 2001 | B22: 4 | C22: 22163 | D22: TRU IR 0080 09.08 | E22: Resurfacing, Divided System | F22: 4 LANE RESURFACING WITH BRIDGEWORK. | G22: 5373166.975 | H22: 5219099.98 | I22: 5373166.975 | J22: 5373166.975
A23: 2001 | B23: 8 | C23: 12412 | D23: HAM IR 471 0.26 | E23: Minor Rehabilitation - Pavement Prmy Sys | F23: MAJOR REHABILITATION OF EXISTING PAVEMENT AND SAFETY UPGRADE. 0.47 MILES DESIGN BUILD PROJECT | G23: 16821520.43 | H23: 16583439.98 | I23: 16821520.43 | J23: 16821520.43
A24: 2001 | B24: 8 | C24: 19705 | D24: HAM IR 71 11.08 | E24: Resurfacing, Divided System | F24: PROJECT CONSISTS OF PLANING AND RESURFACING AND INSTALLING PAVEMENT MARKINGS.CLOSURE OF NOISE WALL GAPS. PAINT AND LANDSCAPE EXISTING WALLS. | G24: 11791608.16 | H24: 11789259.99 | I24: 11791608.16 | J24: 11791608.16
A25: 2001 | B25: 8 | C25: 19786 | D25: HAM IR 275 32.27 | E25: Resurfacing, Divided System | F25: PROJECT CONSISTS OF PLANING, RESURFACING, PAVEMEMT MARKINGS AND STRUCTURAL STEEL RETROFIT, OVERLAY AND NEW PARAPETS FOR MAINLINE BR. OVER GREAT MIAMI RIVER | G25: 32140257.51 | H25: 31561632.69 | I25: 32140257.51 | J25: 32140257.51
A26: 2001 | B26: 10 | C26: 21053 | D26: ATH US 33 10.41 | E26: Bridge Repair | F26: BRIDGE DECK REHABILITATION. INCLUDES ATH-33-10.41R. DETOUR APPLICATION REQUIRED. DESIGN BUILD. | G26: 1899668.915 | H26: 1899900 | I26: 1899668.915 | J26: 1899668.915
A27: 2001 | B27: 11 | C27: 12761 | D27: TUS IR 77 3.94 | E27: Resurfacing, Divided System | F27: 4-LANE MAJOR RHABILITAION - RUBBLIZE AND ROLL; SIGNING, LIGHTING, FENCING, GUARD- RAIL, MODIFY OR REPAIR 5 BRIDGES. DESIGN BUILD. | G27: 10011441.86 | H27: 9618699.99 | I27: 10011441.86 | J27: 10011441.86
A28: 2002 | B28: 1 | C28: 21490 | D28: HAR SR 81 16.54 | E28: Bridge Repair | F28: REPLACE DECK ON STRUCTURE OVER THE BLANCHARD RIVER. | G28: 358972.054 | H28: 337250 | I28: 358972.054 | J28: 358972.054
A29: 2002 | B29: 1 | C29: 23567 | D29: ALL CR 88 0.36 | E29: Major Widening | F29: WIDEN EXISTING ROADWAY TO THREE LANES TO PROVIDE FOR A TWO WAY LEFT TURN LANE FROM WEST OF GRONE RD. TO EAST OF LEHMAN RD. FEDERAL MAX $116,500 | G29: 126885.659 | H29: 239694.04 | I29: 126885.659 | J29: 126885.659
A30: 2002 | B30: 2 | C30: 22516 | D30: HEN SR 108 15.61 | E30: Bridge Repair | F30: REHAB EXISTING BRIDGE BY REPLACING PARAPETS, SIDEWALKS & WEARING SURFACE; PATCH CONC SPANDRAL WALLS AS REQUIRED; PERFORM NECESSARY RELATED WORK. DESIGN-BUILD | G30: 1025541.085 | H30: 934490 | I30: 1025541.085 | J30: 1025541.085
A31: 2002 | B31: 5 | C31: 22587 | D31: PER CR 57 05.60 | E31: Bridge Replacement | F31: REPLACE 4 BRIDGES. INCLUDES PID 21426. | G31: 732832.752 | H31: 673850 | I31: 732832.752 | J31: 732832.752
A32: 2002 | B32: 5 | C32: 22627 | D32: GUE CR 73 00.00 | E32: Bridge Replacement | F32: REPLACE 6 BRIDGES | G32: 537263.287 | H32: 494288 | I32: 537263.287 | J32: 537263.287
A33: 2002 | B33: 7 | C33: 19669 | D33: MOT SR 4 4.83 | E33: Bridge Replacement | F33: REPLACE 28FT STRUCTURE OVER DRY RUN WITH MINIMAL APPROACH WORK. CLEAR SPAN = 25 FT | G33: 306540.504 | H33: 299860 | I33: 306540.504 | J33: 306540.504
A34: 2002 | B34: 7 | C34: 24375 | D34: MER CR 22 1.32 | E34: Bridge Replacement | F34: REMOVE THREE EXISTING BRIDGE AND ASSOC. ROADWAY APPROACH PAVT. CONSTRUCT NEW PRECAST CONCRETE BOX BRIDGES AND ASSOC. ROADWAY APPROACH. DESIGN/BUILD. | G34: 405588.103 | H34: 373390 | I34: 405588.103 | J34: 405588.103
A35: 2002 | B35: 8 | C35: 21713 | D35: PRE US 40 1.33 | E35: Bridge Replacement | F35: REPLACE BRIDGE NO. PRE-40-0133 OVER TRIBUTARY OF THE EAST FORK OF THE WHITEWATER RIVER. DESIGN BUILD PROJECT | G35: 262920.155 | H35: 265540 | I35: 262920.155 | J35: 262920.155
A36: 2002 | B36: 8 | C36: 24434 | D36: PRE TR 444 0.80 & VAR DB | E36: Bridge Replacement | F36: REPLACE THREE EXISTING TRUSS BRIDGES (TR444-.80 TR453-1.25, AND TR409-1.60) AND REPLACE EXISTINGSTEEL BEAM BRIDGE (CR56-.60) DESIGN BUILD PROJECT. | G36: 1430890.556 | H36: 1579238.71 | I36: 1430890.556 | J36: 1430890.556
A37: 2003 | B37: 1 | C37: 24297 | D37: PAU CR 111 4.65 | E37: Bridge Repair | F37: REHABILITATE TWO EXISTING STRUCTURES BY REPLACING THE EXISTING DECKS. THIS WILL BE A DESIGN BUILD PROJECT. | G37: 948266.085 | H37: 540955.35 | I37: 948266.085 | J37: 948266.085
A38: 2003 | B38: 1 | C38: 24518 | D38: HAN CR 8 4.85 | E38: Bridge Replacement | F38: REPLACE 6 EXISTING STRUCTURES IN HANCOCK COUNTY WITH NEW STRUCTURES. THIS WILL BE A DESIGN BUILD PROJECT. | G38: 1018570.543 | H38: 817520 | I38: 1018570.543 | J38: 1018570.543
A39: 2003 | B39: 3 | C39: 24442 | D39: HUR CR 0124 01.880 | E39: Bridge Replacement | F39: DESIGN BUILD PROJECT ON TR91 (TERRY RD) OVER THE HURON RIVER AND ON CR241 (WASHINGTON RD) OVER A BRANCH OF THE HURON RIVER | G39: 785137.961 | H39: 730581.4 | I39: 785137.961 | J39: 785137.961
A40: 2003 | B40: 4 | C40: 18718 | D40: SUM SR 0021 01.79 | E40: Bridge Repair | F40: REHAB ONE STRUCTURE ON SR21 IN SUMMIT CO INCLUDES PIDS 18719 AND 13337. | G40: 1088493.798 | H40: 1066510 | I40: 1088493.798 | J40: 1088493.798
A41: 2003 | B41: 4 | C41: 19791 | D41: STA IR 0077 00.00 | E41: Resurfacing, Divided System | F41: FOUR LANE RESURFACING/UPGRADING FROM TUSCARAWAS COUNTY TO CANTON CORPORATION LIMIT. INCLUDING WORK ON 5 BRIDGES | G41: 5189057.093 | H41: 5077263 | I41: 5189057.093 | J41: 5189057.093
A42: 2003 | B42: 4 | C42: 22174 | D42: ATB SR 0011 25.16 | E42: Bridge Repair | F42: REDECK STRUCTURE, MAKE STRUCTURAL STEEL CONTINUOUS AND PAINT STRUCTURAL STEEL ON THE LEFT AND RIGHT PARTS OF THE BRIDGE | G42: 10085422.19 | H42: 10140920 | I42: 10085422.19 | J42: 10085422.19
A43: 2003 | B43: 4 | C43: 22229 | D43: SUM IR 0077 15.47 | E43: Bridge Repair | F43: REDECK/PAINT BRIDGE UNDER STONER ST. OLD PID 19922 | G43: 1536568.992 | H43: 1545830 | I43: 1536568.992 | J43: 1536568.992
A44: 2003 | B44: 4 | C44: 23672 | D44: SUM Main Street | E44: Major Reconstruction | F44: DECK REPLACEMENT AND RELATED IMPROVEMENT.DESIGN-BUILD PROJECT. | G44: 5260233.957 | H44: 5920548.77 | I44: 5260233.957 | J44: 5260233.957
A45: 2003 | B45: 4 | C45: 23929 | D45: TRU SR 0011 09.08 | E45: Lighting | F45: INSTALL INTERCHANGE LIGHTING FOR SR82 AT SR11 INTERCHANGE, ALSO RESURFACE THE INTERCHANGE INCLUDING ALL RAMPS WITH SKID-RESISTANT MATERIAL | G45: 2251812.016 | H45: 2235652.1 | I45: 2251812.016 | J45: 2251812.016
A46: 2003 | B46: 4 | C46: 24038 | D46: ATB CR 0020 00.02 | E46: Bridge Replacement | F46: REPLACE A 3 SPAN 60FOOT BY 116FOOT BY 50FOOT PRATT TRUSS BRIDGE OVER NORFOLK & SOUTHERN RAILROAD (PLYMOUTH RIDGE ROAD) | G46: 1082067.829 | H46: 865977 | I46: 1082067.829 | J46: 1082067.829
A47: 2003 | B47: 4 | C47: 24447 | D47: POR CR 0176 00.17 | E47: Bridge Replacement | F47: BRIDGE REPLACEMENT. DESIGN BUILD PROJECT | G47: 238318.496 | H47: 203039.9 | I47: 238318.496 | J47: 238318.496
A48: 2003 | B48: 4 | C48: 24663 | D48: TRU CR 0302 02.40 | E48: Bridge Replacement | F48: (DONLEY ROAD) REPLACE EXISTING BRIDGES OVER SWINE CREEK & BRAND RIVER | G48: 484343.798 | H48: 463586.98 | I48: 484343.798 | J48: 484343.798
A49: 2003 | B49: 5 | C49: 19821 | D49: GUE IR 77 07.68 | E49: Bridge Repair | F49: DECK REPLACEMENT AND PAINTING ON TWO BRIDGES / DESIGN BUILD LANDSCAPING TE FUNDS | G49: 2175146.938 | H49: 2120800 | I49: 2175146.938 | J49: 2175146.938
A50: 2003 | B50: 5 | C50: 24369 | D50: COS SR 16 07.18 | E50: Culvert Construction/Reconstr/Repair | F50: Replace 2 culverts/1 bridge using the ODOT Design Build PolicyCos-16-7.18 = From SR 16E: SR 83S to CR-271E to Second Street E to SR 541N to SR 16ELic-13-17.11 = From SR 13N to TR-76 (Weaver Rd) to TR-75 (Preston Rd) to TR-105 (Joseph Rd) to SR 13Gue-821-0 | G50: 524045.395 | H50: 553324.8 | I50: 524045.395 | J50: 524045.395
A51: 2003 | B51: 6 | C51: 12769 | D51: PIC US 22 16.96 | E51: Bridge Repair | F51: REHAB 633FT BRIDGE OVER SCIOTO RIVER WITH SHORT APPROACH AND APPROACH GUARDRAIL. DESIGN/BUILD FAST TRACK CONST | G51: 2967458.023 | H51: 3528190 | I51: 2967458.023 | J51: 2967458.023
A52: 2003 | B52: 6 | C52: 23948 | D52: UNI CR 23 02.070 | E52: Bridge Replacement | F52: CEAO DESIGN/BUILD PROJECT TO REPLACE TWO STRUCTURES ON CR23 AND CR213. PREVIOUSLY PROGRAMMED AS 2 SEPARATE PIDS; PID 23949 (CR213) COMBINED WITH THIS PID. | G52: 698623.725 | H52: 832293.9 | I52: 698623.725 | J52: 698623.725
A53: 2003 | B53: 6 | C53: 23997 | D53: FRA IR 270 1.52 | E53: Noise Wall | F53: CONSTRUCTION OF TYPE2 (RETROFIT) NOISE WALL. DESIGN/BUILD. | G53: 571530.039 | H53: 569250 | I53: 571530.039 | J53: 571530.039
A54: 2003 | B54: 7 | C54: 24384 | D54: DAR SR 705 11.02 | E54: Bridge Replacement | F54: REPLACE A 27FT STRUCTURE OVER BRANCH OF MILE CREEK WITH MINIMAL APPROACH WORK. DESIGN/BUILD. | G54: 235092.442 | H54: 208670 | I54: 235092.442 | J54: 235092.442
A55: 2003 | B55: 8 | C55: 21019 | D55: BUT TR 175 0.51 | E55: Bridge Replacement | F55: REPLACE TWO DEFICIENT STRUCTURES. COUNTY DESIGN BUILD PROJECT. | G55: 1055632.047 | H55: 989592.46 | I55: 1055632.047 | J55: 1055632.047
A56: 2003 | B56: 10 | C56: 24446 | D56: MEG CR0028 06.240 | E56: Bridge Replacement | F56: BRIDGE REPLACEMENT PROJECT USING THE DESIGN/BUILD PROCESS. INCLUDES MEG- CR029-0268. | G56: 340903.101 | H56: 292900 | I56: 340903.101 | J56: 340903.101
A57: 2003 | B57: 11 | C57: 20996 | D57: TUS IR 77 7.55 | E57: Resurfacing, Divided System | F57: 4 LANE MAJ REHAB-RUBBLIZE &ROLL;SIGNING GUARDRAIL,REPAIR 5 BRIDGES. SIGNING IN CLUDED 00.00-3.88SECTION | G57: 9197739.922 | H57: 8853710 | I57: 9197739.922 | J57: 9197739.922
A58: 2003 | B58: 12 | C58: 24356 | D58: CUY SPAFFORD ROAD | E58: Bridge Replacement | F58: REPLACE THE SPAFFORD RD BRIDGE #23 OVER E.BRCH OF ROCKY RIVER IN BROOK PARK AND OLMSTED TWP LOCAL, NON-TRADITIONAL, DESIGN BUILD | G58: 873877.326 | H58: 938585 | I58: 873877.326 | J58: 873877.326
A59: 2003 | B59: 12 | C59: 24364 | D59: LAK RAVENNA ROAD /VARIOUS | E59: Bridge Replacement | F59: REPLACE BRIDGES: RAVENNA ROAD OVER KELLOG CREEK / CUNNINGHAM ROAD OVER ARCOLA CREEK / PINEHILL ROAD OVER ELLISON CREEK IN MADISON & CONCORD TOWNSHIPS. LOCAL, NON-TRADITIONAL, DESIGN-BUILD | G59: 1442295.671 | H59: 1367347.34 | I59: 1442295.671 | J59: 1442295.671
A60: 2004 | B60: 1 | C60: 21607 | D60: HAN SR 37 10.81 | E60: Bridge Repair | F60: REHABILITATE EXISTING STRUCTURE OVER THE BLANCHARD RIVER BY REPLACING THE DECK, BACKWALLS AND APPROACH SLABS. | G60: 492600.624 | H60: 480910 | I60: 492600.624 | J60: 492600.624
A61: 2004 | B61: 2 | C61: 24102 | D61: SEN SR 67 9.87 | E61: Resurfacing, Undivided System | F61: 2-LANE RESURFACING WITH PAVEMENT REPAIRS AS NEEDED (Cold in Place recycling); PERFORM NECESSARY RELATED WORK. | G61: 1795192.461 | H61: 1703351 | I61: 1795192.461 | J61: 1795192.461
A62: 2004 | B62: 2 | C62: 75172 | D62: D02-SIGN-FY2004(A) | E62: Signs | F62: District wide sign upgrade; perform necessary related work | G62: 364319.767 | H62: 322850 | I62: 364319.767 | J62: 364319.767
A63: 2004 | B63: 6 | C63: 75280 | D63: FRA IR 270 20.03 | E63: Noise Wall | F63: Construct noisewalls along both sides of I-270 to fulfill commitments made when I-270 was widened to four lanes in each direction. Noise abatement for PIDs-12505, 12504, 12494, and 12495. | G63: 7891961.24 | H63: 7970600 | I63: 7891961.24 | J63: 7891961.24
A64: 2004 | B64: 7 | C64: 19670 | D64: MOT SR 48 5.16 | E64: Bridge Replacement | F64: REPLACE 21FT STRUCTURE OVER TRIBUTARY TO HOLES CREEK WITH MINIMAL APPROACH WORK. ELIMINATE GUARDRAIL. CLEAR SPAN = 19FT. | G64: 340560.019 | H64: 286480 | I64: 340560.019 | J64: 340560.019
A65: 2004 | B65: 11 | C65: 19572 | D65: D11 Sign FY2004A | E65: Signs | F65: REPLACE OR EPOXY SEAL OVERHEAD SIGN SUPPORT STRUCTURES IN COL, HAS, JEF AND TUS COUNTIESUpgrade existing signs including all interchanges and intersections on Has-22 and Jef-22 locations. Includes Hopedale. | G65: 591897.093 | H65: 510130 | I65: 591897.093 | J65: 591897.093
A66: 2004 | B66: 11 | C66: 19575 | D66: D11 Sign FY2004 B | E66: Signs | F66: UPGRADE EXISTING SIGNS INCLUDING ALL INTERCHANGES ON IR 470 | G66: 570522.578 | H66: 514942 | I66: 570522.578 | J66: 570522.578
A67: 2005 | B67: 6 | C67: 75279 | D67: FRA/DEL IR 71 25.36/1.16 | E67: Noise Wall | F67: Construct noise walls along both sides of I-71 to fulfill environmental commitments when I-71 was widened (under PID-7278). | G67: 9338893.411 | H67: 8843450 | I67: 9338893.411 | J67: =IF(G67<>0,G67,H67) -> 9338893.411
A68: 2005 | B68: 6 | C68: 76564 | D68: FAY SR 41 22.18 | E68: Bridge Repair | F68: REPLACE DECK WITH A WIDER (THREE LANE) DECK AND APPROACH WORK FOR FUTURE WIDENING OF SR 41. DESIGN/BUILD PROJECT. | G68: 2323913.566 | H68: 2300761 | I68: 2323913.566 | J68: 2323913.566
A69: 2005 | B69: 7 | C69: 25295 | D69: MER SR 117 9.31 | E69: Bridge Replacement | F69: REPLACE TWO BRIDGES. DESIGN BUILD PROJECT. | G69: 440897.713 | H69: 403929.8 | I69: =IF(G69="",H69,G69) -> 440897.713 | J69: 440897.713
A70: 2005 | B70: 10 | C70: 76160 | D70: WAS IR 77 6.59 | E70: Major Rehabilitation | F70: Four-lane major rehabilitation project. WAS IR 77 6.59-17.59 and NOB IR 77 0.00-1.56. Includes WAS IR 77 11.53 LT and WAS IR 77 12.08 RT bridges. PID's now combined with this job are: 76239 (WAS 77 10.90 and NOB 77 0.13 Landslide locations) and 21857 ( | G70: 21855150.76 | H70: 20279824 | I70: 21855150.76 | J70: 21855150.76
A71: 2006 | B71: 4 | C71: 23703 | D71: STA US 0062 08.32 | E71: Bridge Repair | F71: REDECK AND PAINTING OF ONE STRUCTURE.Design/Build. | G71: 906007.171 | H71: 826506.54 | I71: 906007.171 | J71: 906007.171
A72: 2006 | B72: 4 | C72: 25072 | D72: STA SR 0225 00.76 | E72: Bridge Repair | F72: REPLACEMENT OF EXISTING DECK. | G72: 657647.281 | H72: 579280 | I72: 657647.281 | J72: 657647.281
A73: 2006 | B73: 8 | C73: 25499 | D73: HAM SR 562 0.00 | E73: Resurfacing, Divided System | F73: REHABILITATE SR 562. | G73: 5923664.175 | H73: 5768190 | I73: 5923664.175 | J73: 5923664.175
A74: 2006 | B74: 9 | C74: 76169 | D74: SCI CR 15 0.12 Dixon Mill Road | E74: Bridge Replacement | F74: Replace existing deficient bridge on Dixon Mill ROad over the Little Scioto River, Scioto County Road 15. This project is a Design Build project per the Scioto County Engineer. | G74: 1583075.581 | H74: 1365475.03 | I74: 1583075.581 | J74: 1583075.581
A75: 2007 | B75: 9 | C75: 76170 | D75: SCI CR 48 2.85 Arion Road Brdg | E75: Bridge Replacement | F75: Replace existing deficient one lane bridge on Arion Road over Scioto Brush Creek. Scioto County Road 48. | G75: 1633720.93 | H75: 1687500 | I75: 1633720.93 | J75: 1633720.93
A76: 2007 | B76: 12 | C76: 79599 | D76: CUY IR 071 11.88 NOISE WALL | E76: Noise Wall | F76: Construct noise walls. | G76: 6408455.504 | H76: 6255500 | I76: 6408455.504 | J76: 6408455.504
A77: 2008 | B77: 3 | C77: 20375 | D77: CRA SR 0602 06.00 | E77: Bridge Repair | F77: NEW DECK, CHANGE TO SEMI-INTREGAL ABUT INCL NEW APPROACH SLAB | G77: 664856.423 | H77: 629850 | I77: 664856.423 | J77: 664856.423
A78: 2008 | B78: 4 | C78: 23753 | D78: STA SR 0021 08.98 | E78: Bridge Repair | F78: REDECK with Widening AND PAINTING OF ONE STRUCTURE IN STARK COUNTY ON SR 21. | G78: 2030063.806 | H78: 1776526.5 | I78: 2030063.806 | J78: 2030063.806
A79: 2008 | B79: 6 | C79: 81281 | D79: FRA IR 71 19.09 | E79: Noise Wall | F79: Provide noise barrier walls along I-71 at various locations as warranted. Preliminary studies and public involvement will be performed under an OES task order contract. Construction will be under a design/build contract. | G79: 4435007.752 | H79: 4209700 | I79: 4435007.752 | J79: 4435007.752
A80: 2008 | B80: 6 | C80: 81547 | D80: UNI CR 307 4.89 | E80: Bridge Replacement | F80: STRUCTURE REPLACEMENT WITH APPROACH ROADWAY IMPROVEMENTS.LOCAL-LET PROJECT SOLD/ADMINISTERED BY UNI COUNTY ENGINEER. | G80: 534594.331 | H80: 539921.25 | I80: 534594.331 | J80: 534594.331
A81: 2008 | B81: 8 | C81: 75633 | D81: CLE SR 32 13.14 | E81: Bridge Repair | F81: Bridge rehabilitation project of twin mainline SR 32 bridges over SR 276. Bridge Nos. CLE-32-1314 L/R, SFNs: 1300458/1300466, will receive new reinforced concrete decks; have the structural steel painted; and will receive other minor bridge work. Desig | G81: 1762403.682 | H81: 1726450 | I81: 1762403.682 | J81: 1762403.682
A82: 2009 | B82: 1 | C82: 81299 | D82: HAN CR 26-17.59 | E82: Bridge Replacement | F82: REMOVE AND REPLACE EXISTING STRUCTURALLY DEFICIENT BRIDGE OVER THE BLANCHARD RIVER. | G82: 829222.287 | H82: 843035 | I82: 829222.287 | J82: 829222.287
A83: 2009 | B83: 4 | C83: 25277 | D83: SUM IR 0077 30.96 | E83: Bridge Repair | F83: Re-deck and paint of 8 structures. | G83: 10971100.43 | H83: 10651703.67 | I83: 10971100.43 | J83: 10971100.43
A84: 2009 | B84: 6 | C84: 81548 | D84: UNI CR 310 0.70 | E84: Bridge Replacement | F84: STRUCTURE REPLACEMENT WITH APPROACH ROADWAY IMPROVEMENTS.LOCAL-LET DESIGN/BUILD PROJECT SOLD/ADMINISTERED BY UNI COUNTY ENGINEER. | G84: 548449.919 | H84: 523111.6 | I84: 548449.919 | J84: 548449.919
A85: 2009 | B85: 8 | C85: 23302 | D85: HAM IR 275 7.02 | E85: Slide Repair | F85: CONSTRUCT EARTHWORK BENCH AND COUNTER BERM TO STABILIZE THE LANDSLIDE ALONG EB IR275 RAMP TO EB IR74.PID 79999 combined for Construction. Installation of drainage tile to dewater landslide area at 0.59 miles south of IR74. | G85: 1261014.729 | H85: 1164020 | I85: 1261014.729 | J85: 1261014.729
A86: 2009 | B86: 11 | C86: 80922 | D86: BEL IR 70 0.000 | E86: Signs | F86: Upgrade existing signing along IR 70 and the signing at the interchanges in the project area. | G86: 459783.527 | H86: 426420 | I86: 459783.527 | J86: 459783.527
A87: 2010 | B87: 1 | C87: 82163 | D87: HAN IR 75 22.12 | E87: Bridge Replacement | F87: Replace CR 109 bridge over Interstate 75. DESIGN/BUILD. | G87: 1734162.093 | H87: 1621090 | I87: 1734162.093 | J87: 1734162.093
A88: 2010 | B88: 1 | C88: 82330 | D88: HAN CR 169-0.83 | E88: Bridge Replacement | F88: REPLACE BRIDGE ON HAN CR 169-0.83 over Blanchard River (Design Build) | G88: 700376.163 | H88: 708355 | I88: 700376.163 | J88: 700376.163
A89: 2010 | B89: 2 | C89: 86328 | D89: OTT TR 54 (Billman Rd) Brdg ARRA | E89: Bridge Repair | F89: An ARRA funded project to rehabilitate the steel truss bridge on Billman Rd (TR 54) over Cedar Creek; perform necessary related work. | G89: 289480.101 | H89: 292365 | I89: 289480.101 | J89: 289480.101
A90: 2010 | B90: 3 | C90: 80196 | D90: LOR SR 0058 09.83 | E90: Bridge Deck Replacement | F90: Replace the Deck of LOR-058-09.83 over the West Branch of the Black Rivercoordinate with PID:82773 LOR SR 0058 08.34 - Resurfacing | G90: 717748.062 | H90: 674850 | I90: 717748.062 | J90: 717748.062
A91: 2010 | B91: 3 | C91: 83445 | D91: HUR US 0224 08.55 | E91: Bridge Replacement | F91: Bridge Replacement | G91: 1006644.38 | H91: 951500 | I91: 1006644.38 | J91: 1006644.38
A92: 2010 | B92: 3 | C92: 83446 | D92: LOR SR 0058 25.34 | E92: Bridge Repair | F92: Bridge Rehabilitation(Design by Burgess & Niple under D/B contract with Perk Company) | G92: 497813.283 | H92: 444580 | I92: 497813.283 | J92: 497813.283
A93: 2010 | B93: 3 | C93: 84604 | D93: WAY US 0042 00.60 | E93: Bridge Replacement | F93: Bridge Replacement | G93: 757359.26 | H93: 686590 | I93: 757359.26 | J93: 757359.26
A94: 2010 | B94: 3 | C94: 86254 | D94: LOR SR 0057 12.54 | E94: Bridge Deck Replacement | F94: Repair twin structures LOR-057-12.54 L&R over branch of Black RiverBridge Deck ReplacementsPID:18982 previously awarded and then terminated | G94: 1390405.426 | H94: 1344310 | I94: 1390405.426 | J94: 1390405.426
A95: 2010 | B95: 4 | C95: 25223 | D95: TRU SR 0011 07.69 | E95: Bridge Repair | F95: REMOVE AND REPLACE EXISTING DECK OF TWO STRUCTURES, TRU-SR11-0959L & TRU-SR11- 0959R. Redeck of TRU-11-9.28. Replacement of TRU-11-19.52.Minor rehabilitation from SLM 7.69 to King Graves interchange. | G95: 13985579.5 | H95: 13097559.18 | I95: 13985579.5 | J95: 13985579.5
A96: 2010 | B96: 6 | C96: 85039 | D96: UNI 2009 HISTORIC BRIDGE PRESERV | E96: Bridge Maintenance | F96: INSTALLATION OF LIGHTING SYSTEMS AND HEAT DETECTION SYSTEMS ON FOUR HISTORIC COVERED BRIDGES IN UNION COUNTY. POTTERSBURG COVERED BRIDGE ON NORTH LEWISBURG MULTI PURPOSE TRAIL; SPAIN CREEK COVERED BRIDGE ON CR163 (INSKEEP-CRATTY ROAD) OVER SPAIN CREEK; CU | G96: 266187.597 | H96: 265640 | I96: 266187.597 | J96: 266187.597
A97: 2010 | B97: 6 | C97: 85537 | D97: FRA IR 71 19.09 (Phase 2) | E97: Noise Wall | F97: Provide noise barrier walls along I-71 at various locations as waranted. Design/build contract. | G97: 5247566.085 | H97: 4621550 | I97: 5247566.085 | J97: 5247566.085
A98: 2010 | B98: 6 | C98: 86359 | D98: MAD CR 12 (Old Xenia Rd) | E98: Bridge Replacement | F98: Replace bridge on MAD CR 12 (Old Xenia Rd) on Woolsey Ditch/Paint Creek. | G98: 389587.984 | H98: 355337.5 | I98: 389587.984 | J98: 389587.984
A99: 2010 | B99: 6 | C99: 86459 | D99: DEL CR 24 5.020 | E99: Bridge Deck Replacement | F99: Replace deck and superstructure members.Modify or replace bridge abutments.Possible piers work, minor roadway approach work, guardrail replacement.MORPC Stimulus funded project - cap amount of $1,500,000. | G99: 718568.19 | H99: 767656.33 | I99: 718568.19 | J99: 718568.19
A100: 2010 | B100: 8 | C100: 84497 | D100: HAM IR 75 10.09 | E100: Minor Rehabilitation - Pavement Prmy Sys | F100: Resurface and perform pavement repair on I-75 from south of SR 126 to south of the Lockland Corp. Project includes several minor bridge rehabilitations. | G100: 7018498.161 | H100: 6964179.77 | I100: 7018498.161 | J100: 7018498.161
A101: 2010 | B101: 9 | C101: 85830 | D101: LAW S.P. INTERMODAL ROADWAY | E101: Inter-modal Facility | F101: It is proposed to improve access roads that would allow for better access and handling between river barges, rail, and highway freight. Note: Split to PID 86717 "LAW S.P. INTERMODAL RAIL" | G101: 1132713.178 | H101: 1461028.62 | I101: 1132713.178 | J101: 1132713.178
A102: 2010 | B102: 9 | C102: 86717 | D102: LAW S.P. Intermodal Rail | E102: Inter-modal Facility | F102: It is proposed to construct rail lines and a concrete transfer pad to facilitate cargo transfer from rail to highway. Note: Split from PID 85830 "LAW S.P. INTERMODAL ROADWAY" | G102: 2501989.147 | H102: 2452617.38 | I102: 2501989.147 | J102: 2501989.147
A103: 2010 | B103: 11 | C103: 76825 | D103: BEL IR 70 7.61 | E103: Major Reconstruction | F103: UBCO on existing mainline and ramps, full depth removal and rigid replacement at overhead bridges, reconstruct median and median drainage, replace guardrail and signs, rehabilitation of 4 bridges, reconstruction of passenger car parking are in EB rest are | G103: 25534892.59 | H103: 25055850 | I103: 25534892.59 | J103: 25534892.59
A104: 2010 | B104: 11 | C104: 78478 | D104: COL US0030/SR0011 25.09/10.82 | E104: Signs | F104: Upgrade all existing signing along US 30 & SR 11 including the signing at the interchanges | G104: 779020.221 | H104: 721880 | I104: 779020.221 | J104: 779020.221
A105: 2010 | B105: 11 | C105: 81587 | D105: HAS US 250 11.720 | E105: Major Rehabilitation | F105: Major rehabilitation of existing pavement with unbonded concrete overlay - Major 2 funding; ADDED BY CHANGE ORDER: FHWA OH11-02 flood site; DSR HAS-002: Embankment Failure/ Two Slides - 250ft. Landslide above SR250. The crown of slide is located near old | G105: 4701505.756 | H105: 4635638 | I105: 4701505.756 | J105: 4701505.756
A106: 2010 | B106: 11 | C106: 86367 | D106: JEF SR 43 0.00 | E106: Major Rehabilitation | F106: Concrete pavement replacement, spot roadway base repair, curb repair and replacement, catch basin replacements, guardrail replacement, street lighting replacement, retaining wall repair, signing and pavement marking replacement. ARRA ODOT Tracking ID is | G106: 7715848.302 | H106: 7830667.09 | I106: 7715848.302 | J106: 7715848.302
A107: 2010 | B107: 11 | C107: 87863 | D107: BEL Shadyside - salt storage | E107: Buildings - Mix Shed,etc. | F107: construction of 500 ton salt storage - tensioned Fabric structure | G107: 147721.047 | H107: 149190 | I107: 147721.047 | J107: 147721.047
A108: 2010 | B108: 11 | C108: 87864 | D108: JEF Dillonvale - salt storage | E108: Buildings - Mix Shed,etc. | F108: construction of 1000 ton salt storage - Tensioned Fabric Structure | G108: 213363.953 | H108: 215490 | I108: 213363.953 | J108: 213363.953
A109: 2010 | B109: 11 | C109: 87879 | D109: JEF SR 7 1.660 | E109: Bridge Repair | F109: Remove existing MSC overlay and replace with new MSC overlay (including approach slabs) and perform some full-depth repairs to the deck. | G109: 796287.867 | H109: 804220 | I109: 796287.867 | J109: 796287.867
A110: 2010 | B110: 12 | C110: 87632 | D110: CUY IR 077 00.38/VAR | E110: Bridge Deck Replacement | F110: Bridge Deck: Replace the bridge decks over I-77 at Snowville Road, Highland Drive, Valley Parkway, and Oakes Road in Brecksville. Valley Parkway moved to PID 91820. | G110: 4143850.364 | H110: 3782540 | I110: 4143850.364 | J110: 4143850.364
A111: 2010 | B111: 12 | C111: 87633 | D111: CUY IR 077 03.45/VAR | E111: Bridge Deck Replacement | F111: Bridge Deck: Replace the bridge decks over I-77 at Harris Road, Lacey Lane, and Chestnut Road in the Cities of Independence and Broadview Heights. | G111: 2810196.047 | H111: 2527440 | I111: 2810196.047 | J111: 2810196.047
A112: 2011 | B112: 1 | C112: 84564 | D112: ALL SR 81 4.89 | E112: Bridge Deck Replacement | F112: REPLACE THE CONCRETE BRIDGE DECK ON THE BRIDGE OVER THE AUGLAIZE RIVER | G112: 717813.955 | H112: 654790 | I112: 717813.955 | J112: 717813.955
A113: 2011 | B113: 2 | C113: 76710 | D113: SAN US 20 03.77 Rehab | E113: Minor Rehabilitation - Pavement Prmy Sys | F113: A district funded project to rehabilitate SAN-20 from east of Woodville east corp line to a butt joint west of TR138; perform necessary related work. See PID 85241 for WB resurf. Update: Central office pavement visited the project site. New treatment reco | G113: 13313963.52 | H113: 12908730 | I113: 13313963.52 | J113: 13313963.52
A114: 2011 | B114: 3 | C114: 87315 | D114: MED Mud Lake Rd Replace Bridge | E114: Bridge Replacement | F114: MED Mud Lake Rd Bridge Replacement (SFN #5238714) - Split from PID 85697. | G114: 1711437.569 | H114: 1642355.49 | I114: 1711437.569 | J114: 1711437.569
A115: 2011 | B115: 3 | C115: 88375 | D115: D3 ERI/HUR Salt Storage Building | E115: Salt Dome | F115: Design Build contract for Salt Storage structure at Erie and Huron County Garages.Design Build-will contain PE and CO Phase funding eventsD3 Building Superintendent: Richard Feldkamp | G115: 762403.101 | H115: 700000 | I115: 762403.101 | J115: 762403.101
A116: 2011 | B116: 3 | C116: 88662 | D116: WAY SR 0003 24.25 | E116: Culvert Construction/Reconstr/Repair | F116: Culvert Replacement WAY-003-24.25 +/- | G116: 161111.579 | H116: 136870 | I116: 161111.579 | J116: 161111.579
A117: 2011 | B117: 4 | C117: 25501 | D117: ATB SR 0011 13.30 | E117: Minor Rehabilitation - Pavement Prmy Sys | F117: PAVEMENT REPAIR AND BRIDGE WORK | G117: 11701964 | H117: 11360330.95 | I117: 11701964 | J117: 11701964
A118: 2011 | B118: 4 | C118: 84631 | D118: TRU US 0422 19.94 | E118: Bridge Replacement | F118: Superstructure replacement. | G118: 851713.178 | H118: 850842.4 | I118: 851713.178 | J118: 851713.178
A119: 2011 | B119: 4 | C119: 86995 | D119: ATB 90/45 (2.33)(7.43)/19.89 | E119: Bridge Deck Replacement | F119: Bridge re-deck. Second structure at SLM ATB-90-7.43. Sealing sfn#0402591 at ATB-45-19.89. | G119: 1173311.143 | H119: 1180300 | I119: 1173311.143 | J119: 1173311.143
A120: 2011 | B120: 4 | C120: 87318 | D120: POR-Rock Spring/Knapp Rds Brdgs | E120: Bridge Replacement | F120: POR Rock Springs Rd Replace Bridge (SFN #6730809)- Split from PID 85697. SEE PID 80658 $700,000 replacement of same bridge (SFN 6730809). Added POR Knapp Rd Replace Bridge, PID 87317 (SFN #6741150) as of 01/20/2010. | G120: 5645671.006 | H120: 5483569.82 | I120: 5645671.006 | J120: 5645671.006
A121: 2011 | B121: 4 | C121: 87319 | D121: TRU 5th Street Replace Bridge | E121: Bridge Replacement | F121: TRU 5th Street Replace Bridge replacement - Split from PID 85697. | G121: 1928999.651 | H121: 1911110 | I121: 1928999.651 | J121: 1928999.651
A122: 2011 | B122: 4 | C122: 87966 | D122: POR IR 0076 (17.59)(19.61) | E122: Bridge Repair | F122: Superstructure replacements. | G122: 1910364.341 | H122: 1901000 | I122: 1910364.341 | J122: 1910364.341
A123: 2011 | B123: 6 | C123: 77369 | D123: FRA IR 71 17.760 (Pjt 1) | E123: Major Reconstruction | F123: FIRST CONSTRUCTION PROJECT RESULTING FROM MAJOR INVESTMENT/PRELIMINARY ENGINEERING STUDY (PID 23318).Reconstruction of the 670/71 Interchange. Work involves realignment of I-670 EB so through traffic stays to the left and traffic to I-71 exits to the righ | G123: 218210658.9 | H123: 255190121 | I123: 218210658.9 | J123: 218210658.9
A124: 2011 | B124: 6 | C124: 82358 | D124: UNI TR 279 1.04 | E124: Bridge Replacement | F124: CEAO FUNDED BRIDGE REPLACEMENT PROJECT.UNI-TR279-1.04 (SNEDIKER ROAD) OVER FULTON CREEK. CLAIBOURNE TOWNSHIP.PROJECT TO BE SOLD AS DESIGN/BUILD BY UNION COUNTY ENGINEER. | G124: 664053.101 | H124: 670670 | I124: 664053.101 | J124: 664053.101
A125: 2011 | B125: 6 | C125: 85950 | D125: D06 ExtruSign FY11A | E125: Signing | F125: Extru sign replacement for improved reflectivity for safety. Limits include I-270 and lead-in signs.Upgrade existing ground and overhead mounted extrusheet signs on mainline and ramps.Upgrade extrusheet signs on side street approaches to interchanges tha | G125: 5220095.612 | H125: 5037260 | I125: 5220095.612 | J125: 5220095.612
A126: 2011 | B126: 8 | C126: 83047 | D126: Pre TR259/329 Des Build Br Rep | E126: Bridge Replacement | F126: Junction Road (TR 259) Replace S.D. steel truss bridge Ketterman Road (TR 329) Replace S.D. bridge with minimal approach work | G126: 828514.341 | H126: 836770 | I126: 828514.341 | J126: 828514.341
A127: 2011 | B127: 8 | C127: 85364 | D127: GRE IR 675 3.10 | E127: Noise Wall Maintenance/Repair (NEW) | F127: Replace existing noise wall panels on existing noise wall, investigate salvaging existing steel posts, replace steel posts where warranted.(Design Build Project) | G127: 2057399.225 | H127: 2053150 | I127: 2057399.225 | J127: 2057399.225
A128: 2011 | B128: 9 | C128: 79855 | D128: ADA US 52 1.10 Brdg Replace | E128: Bridge Replacement | F128: It is proposed to replace bridge number 0101621. | G128: 1460197.984 | H128: 1355400 | I128: 1460197.984 | J128: 1460197.984
A129: 2011 | B129: 11 | C129: 84323 | D129: COL SR 7 0.00 | E129: Signs | F129: Upgrading the existing signing along SR 7 in Columbiana and Jefferson county and US 36 and US 250 in Tuscarawas county. | G129: 1324784.302 | H129: 1274620 | I129: 1324784.302 | J129: 1324784.302
A130: 2011 | B130: 12 | C130: 85531 | D130: CUY IR 090 14.90 WB Design Build | E130: New Bridge | F130: Design Build ContractOther Consultant Contracts: DBE Outreach(Dec 7 2009), Project Controls-Scheduling(Apr 12 2010), Project Controls-Reporting, Document Management, etc.(Apr 12 2010), Construction Inspection (2)(Fall 2010), Material Testing (2) (Fall 201 | G130: 313020930.2 | H130: 314401840.8 | I130: 313020930.2 | J130: 313020930.2
A131: 2012 | B131: 2 | C131: 84319 | D131: OTT Ferry Terminal Building | E131: Dock Facilities | F131: A ferry boat discretionary (FBD) funded project to utilize and showcase solar technology at the Port Clinton and Put-in-Bay terminal buildings. The terminal buildings will receive new roofing and solar technology will be incorporated with either solar pa | G131: 374918.26 | H131: 365231 | I131: 374918.26 | J131: =IF(G131<>0,G131,H131) -> 374918.26
A132: 2012 | B132: 2 | C132: 89226 | D132: SEN/WIL Vestibule Additions | E132: Facility Renovation | F132: A lands & building funded project to remove and re-install of the entrance door so as to open outward. A new wall and door will be added within the vastibule in a similar format; perform necessary related work. UPDATE (3-8-11): project includes PID 89227 | G132: 103468.992 | H132: 104500 | I132: 103468.992 | J132: 103468.992
A133: 2012 | B133: 3 | C133: 82255 | D133: LOR SR 0002 SYSSIGN FY2012 | E133: Signs | F133: Systematic Sign ReplacementLOR-002-03.50 - 11.14 / LOR-090-10.78 - 23.33exclude signs associated with Avon Interchange PID:83607I-90 was previously programmed as PID:82256 | G133: 1043865.988 | H133: 1007260 | I133: =IF(G133="",H133,G133) -> 1043865.988 | J133: 1043865.988
A134: 2012 | B134: 4 | C134: 76295 | D134: ATB SR 0011 23.85 | E134: Bridge Repair | F134: Miscellaneous bridge work to six structures. | G134: 4192732.384 | H134: 4130379.82 | I134: 4192732.384 | J134: 4192732.384
A135: 2012 | B135: 4 | C135: 76403 | D135: SUM IR 0077 24.29 | E135: Bridge Deck Replacement | F135: Seven Bridge re-decks. Miscellaneous bridge work. | G135: 7528050.448 | H135: 6813755 | I135: 7528050.448 | J135: 7528050.448
A136: 2012 | B136: 4 | C136: 91094 | D136: POR IR 0076 (3.93)(4.74) | E136: Bridge Deck Replacement | F136: Re-deck and painting of two structures. | G136: 2023635.659 | H136: 1863992.65 | I136: 2023635.659 | J136: 2023635.659
A137: 2012 | B137: 6 | C137: 82359 | D137: UNI CR 338 0.39 | E137: Bridge Replacement | F137: CEAO FUNDED BRIDGE REPLACEMENT PROJECT.UNI-CR338-0.39 (COBB-HARRIMAN ROAD) OVER RUSH CREEK (JACKSON TOWNSHIP).DESIGN/BUILD PROJECT. | G137: 964007.531 | H137: 922412 | I137: 964007.531 | J137: 964007.531
A138: 2012 | B138: 6 | C138: 86916 | D138: MRW IR 71 12.190 | E138: Major Widening | F138: Full depth pavement replacement with addition of third median lane in each direction.Multi-lane Reconstruction funding. Pvmt work - 19% NH and 81% IM approved by S Lowry via e-mail dated 11/4/10.Env phase also for PID's 86920 & 86921D6 Environmental Co | G138: 45784459.45 | H138: 44205370 | I138: 45784459.45 | J138: 45784459.45
A139: 2012 | B139: 6 | C139: 86921 | D139: DEL IR 71 11.500 | E139: Major Widening | F139: Full depth pavement replacement and addition of 3rd median lane.Replace and widen ML Bridge MRW-71-3.00Env on PID 86916Consultant Project Manager - Jim Prevost | G139: 54157286.84 | H139: 53244740 | I139: 54157286.84 | J139: 54157286.84
A140: 2012 | B140: 6 | C140: 87948 | D140: FRA Various Noisewall Repair | E140: Noise Wall | F140: Repair damaged noisewalls along IR 71, IR 270, IR 670, and SR 315 in Franklin CountySR-315: SLM 5.18-6.17 (Ackerman Rd to Olentangy River Rd)IR-670: SLM 7.15-7.56 (US-62 to US-62/Fifth Ave)IR-71: SLM 18.75-19.09 (E Second Ave to 5th Ave)IR-71: SLM 24. | G140: 281000 | H140: 271150 | I140: 281000 | J140: 281000
A141: 2012 | B141: 8 | C141: 84444 | D141: HAM SR 562 0004L | E141: Bridge Deck Replacement | F141: Rehabilitate Bridge HAM-562-0.04L by replacing the concrete deck and including other related rehabilitation work.Design Build project. | G141: 800490.581 | H141: 719370 | I141: 800490.581 | J141: 800490.581
A142: 2012 | B142: 8 | C142: 87172 | D142: CLI US 68 14.39 | E142: Bridge Replacement | F142: Replace bridge CLI-68-1443 (SFN 1401173) over Lytle Creek in the City of Wilmington. | G142: 1096654.779 | H142: 901550 | I142: 1096654.779 | J142: 1096654.779
A143: 2012 | B143: 11 | C143: 84331 | D143: BEL SR 7 6.110 | E143: Signs | F143: Upgrading existing sigining along SR 7 including the signing at the interchanges in Belmont and Jefferson counties. | G143: 1031177.422 | H143: 980920 | I143: 1031177.422 | J143: 1031177.422
A144: 2013 | B144: 2 | C144: 93473 | D144: D02 GR FY2013 Safety | E144: Guardrail Maintenance/Repair (NEW) | F144: A safety funded project to upgarde guardrail at various D-2 locations, perform necessary related work | G144: 3389889.244 | H144: 3126670 | I144: 3389889.244 | J144: 3389889.244
A145: 2013 | B145: 3 | C145: 82257 | D145: RIC IR 0071 SYSSIGN FY2013 | E145: Signs | F145: Design Build - Supports and signs on those supports along RIC/ASD/WAY 71Project to include Sign Structures that were to be replaced with PID:82254 ASD IR 0071 SYSSIGN FY2012Plan filed as: RIC-71-12.93, ASD-71/60-0.00/15.28, WAY-71-0.00 | G145: 910962.791 | H145: 878790 | I145: 910962.791 | J145: 910962.791
A146: 2013 | B146: 3 | C146: 93717 | D146: LOR Boston Road R/R Xing | E146: Spot Safety | F146: Improve vertical profile to meet 45MPH design speed criteriaReplace existing pavementReplace small culvert | G146: 662092.636 | H146: 595790 | I146: 662092.636 | J146: 662092.636
A147: 2013 | B147: 4 | C147: 76411 | D147: TRU IR 0080 04.70 | E147: Minor Rehabilitation - Pavement Prmy Sys | F147: Minor rehabilitation with bridge work. | G147: 10643704.93 | H147: 10060290 | I147: 10643704.93 | J147: 10643704.93
A148: 2013 | B148: 6 | C148: 82357 | D148: UNI CR 110 1.16 | E148: Bridge Replacement | F148: CEAO FUNDED BRIDGE REPLACEMENT PROJECT.UNI-CR110-1.16 (DELAWARE COUNTY LINE ROAD) OVER BLUES CREEK. DOVER TOWNSHIP. | G148: 849996.682 | H148: 858466 | I148: 849996.682 | J148: 849996.682
A149: 2013 | B149: 6 | C149: 83245 | D149: MAD IR 70 10.270 Phase 1 | E149: Interchange, Reconstruction | F149: Improve MAD IR 70 at SR 29 interchange by constructing a roundabout at the IR 70 WB on and off ramps, widen SR 29 to accommodate the roundabout, and widen the EB off ramp. This PID to include environmental clearance for the footprint of work on the south | G149: 3859420.64 | H149: 3897880 | I149: 3859420.64 | J149: 3859420.64
A150: 2013 | B150: 6 | C150: 83958 | D150: PIC SR 674 4.210 | E150: Bridge Replacement | F150: Bridge Replacement and widening of structure over Turkey Run | G150: 1195602.721 | H150: 1040600 | I150: 1195602.721 | J150: 1195602.721
A151: 2013 | B151: 6 | C151: 86298 | D151: FRA US 62 32.780 | E151: Bridge Deck Replacement | F151: Bridge Replacement over Blacklick Creek. Single-span steel beam.Design Build Project. No R/W. FY12 Reservoir. | G151: 597732.668 | H151: 552050 | I151: 597732.668 | J151: 597732.668
A152: 2013 | B152: 6 | C152: 86920 | D152: MRW IR 71 3.170 | E152: Major Widening | F152: Full depth replacement and addition of 3rd median lane.Remove mainline bridge SLM 5.96 over abandoned RR.Bridge painting of overhead structure, sealing of mainline structuresEnv on PID 86916D6 Environmental Coordinator - Brian Tatman | G152: 56417829.46 | H152: 54151050 | I152: 56417829.46 | J152: 56417829.46
A153: 2013 | B153: 6 | C153: 92610 | D153: FRA IR 270 52.720 | E153: Major Widening | F153: Major Rehab Funding. Final design and construction of the widening of I-270 between I-71 and US-23 on south side of Columbus. Replace the mainline pavement with a 20 year design. Widening of the mainline pavement to accommodate one (1) additional throu | H153: 28380000 | I153: 28380000 | J153: 28380000
A154: 2013 | B154: 6 | C154: 93159 | D154: FRA IR 270 35.520 (Noise Wall) | E154: Noise Wall | F154: Design build noise wall on I-270 from Johnstown Rd to Goshen Lane (north side of I-270 near I-670).FY13 noise wall funding | G154: 730382.171 | H154: 683760 | I154: 730382.171 | J154: 730382.171
A155: 2013 | B155: 7 | C155: 91984 | D155: DAR SR 705 9.02/9.47/10.33 | E155: Bridge Replacement | F155: Three span concrete slab deck removal and replacement with minimal approach work, possible guardrail end treatment upgrades.SFN 1903845 Darke 705 0947 over Holsapple DitchSFN 1903969 Darke 705 1033 over East Branch Baurers DitchSFN 1903810 Darke 705 0902 | G155: 1167875.209 | H155: 1019480 | I155: 1167875.209 | J155: 1167875.209
A156: 2013 | B156: 8 | C156: 90412 | D156: PRE CR18/TR150 1.55/1.35 Des-Bld | E156: Bridge Replacement | F156: Project involves the replacement of the structurally deficient Bridge No. PRE-CR18-0155 (SFN: 6836267), which carries California School Road (CR-18) over Four Mile Creek and the replacement of structurally deficient Bridge No. PRE-TR 15-0135 (SFN: 6839401 | H156: 832091 | I156: 832091 | J156: 832091
A157: 2013 | B157: 8 | C157: 90413 | D157: PRE CR 80 0.12 Des-Build Br Repl | E157: Bridge Replacement | F157: Project includes replacing structurally deficient Bridge No. PRE-CR 80-0010 (SFN: 6835643) which carries Barnets Mill Road (CR-80) over Seven Mile Creek. Work includes minor approach work, pavement repairs, and vertical alignment adjustments, as necessary | H157: 725910 | I157: 725910 | J157: 725910
A158: 2013 | B158: 8 | C158: 90897 | D158: BUT Lakota SRTS | E158: Signs | F158: Install sidewalks along Beckett Ridge, Beckett Station, and Spruce Roads. Upgrade school signing in the vicinity of Freedom Elementary and Lakota Rigde Schools. | G158: 344377.481 | H158: 334884 | I158: 344377.481 | J158: 344377.481
A159: 2013 | B159: 8 | C159: 90962 | D159: PRE TR218 0.20 Des-Build Br Repl | E159: Bridge Replacement | F159: Project involves replacement of the structurally deficient Bridge No. PRE-TR 218-0020 (SFN: 6836402), which carries Concord-Fairhaven Road (TR-218) over Four Mile Creek. Work includes minor approach work, pavement repairs, and vertical alignment adjustmen | H159: 531300 | I159: 531300 | J159: 531300
A160: 2013 | B160: 8 | C160: 91685 | D160: GRE CR25 2.48 Des-Build Br Rehab | E160: Bridge Deck Replacement | F160: Repair deteriorated bridge by replacing the existing box beams, minor repairs to the existing abutments and wingwalls, installation of guardrail, and a new wearing surface. Design Build project. | G160: 324022.407 | H160: 346044 | I160: 324022.407 | J160: 324022.407
A161: 2013 | B161: 8 | C161: 91951 | D161: CLE E. Fork State Park Resurface | E161: Mill and Fill | F161: Design-Build project will resurface roadways and parking areas within East Fork State Park in Clermont County. | G161: 2236632.494 | H161: 2064180 | I161: 2236632.494 | J161: 2236632.494
A162: 2013 | B162: 8 | C162: 92236 | D162: HAM IR 275 24.40 | E162: Drainage Improvement | F162: Drainage improvement in the ramp infields of Ramps C & D of the interchange of I-275 and SR 747 in Hamilton County. | G162: 214398.643 | H162: 187720 | I162: 214398.643 | J162: 214398.643
A163: 2013 | B163: 9 | C163: 80094 | D163: SCI US 52 16.75 | E163: Minor Rehabilitation - Pavement Prmy Sys | F163: It is proposed to repair and the resurface the highway. | G163: 13160114.39 | H163: 12606500 | I163: 13160114.39 | J163: 13160114.39
A164: 2013 | B164: 9 | C164: 91922 | D164: D09 Scioto Trail & ShawneeForest | E164: Culvert Construction/Reconstr/Repair | F164: In Shawnee State Forest, it is proposed to repair/replace 43 culverts on Forest Road #1, 66 culverts on Forest Road #2, and 3 culverts on Forest Road #16. The work ranges from placing headwalls at the inlet, replacing some deteriorated corrugated metal pi | G164: 639002.582 | H164: 657100 | I164: 639002.582 | J164: 639002.582
A165: 2013 | B165: 10 | C165: 83703 | D165: WAS CR 14 0.060 | E165: Bridge Replacement | F165: Bridge replacement project over the Little Musking River. WAS CR 14 0.06, SFN 8430403. CEAO funded project using Credit Bridge. | G165: 1233319.891 | H165: 1146638.04 | I165: 1233319.891 | J165: 1233319.891
A166: 2013 | B166: 11 | C166: 81486 | D166: BEL SR 7 11.870 | E166: Minor Rehabilitation - Pavement Prmy Sys | F166: Priority System minor rehabilation of existing concrete pavement: minimal joint repair, overlay with asphalt, replace median barrier, replace guardrail. The project will also include minor deck patching on bridges within the project limits. | G166: 3524504.69 | H166: 3375340 | I166: 3524504.69 | J166: 3524504.69
A167: 2013 | B167: 11 | C167: 84332 | D167: COL US 30 34.40 | E167: Signs | F167: Upgrade existing signing along US 30 and SR 39 in Columbiana County and along US 22 in Jefferson County. This includes all signing at the interchanges along these routes. | G167: 593857.558 | H167: 557870 | I167: 593857.558 | J167: 593857.558
A168: 2013 | B168: 12 | C168: 92951 | D168: CUY IR 090 18.15 | E168: Bridge Deck Replacement | F168: Replace the deck of the South Marginal Rd bridge over IR-90 in Cleveland. | G168: 854272.674 | H168: 807790 | I168: 854272.674 | J168: 854272.674
A169: 2014 | B169: 3 | C169: 93093 | D169: RIC SR 0096 13.41 | E169: Bridge Deck Replacement | F169: Box Beam Replacement @ RIC-096-13.41 | H169: 403907 | I169: 403907 | J169: 403907
A170: 2014 | B170: 4 | C170: 76340 | D170: STA US 62/62T/173/183/225 VAR | E170: Bridge Deck Replacement | F170: Re-Deck of 2 bridges (Beeson & Vine) and Miscellaneous bridge work to 9 structures. | H170: 5086000 | I170: 5086000 | J170: 5086000
A171: 2014 | B171: 4 | C171: 84754 | D171: MAH IR 680 12.10/14.37 | E171: Bridge Replacement | F171: Bridge replacement and widening. Construct a Westbound right turn lane on Western Reserve Road at the intersection with the IR-680 Northbound on-ramp. Resurfacing of IR-680 from US-224 to Ohio Turnpike, with minor bridge work. | H171: 8822000 | I171: 8822000 | J171: 8822000
A172: 2014 | B172: 4 | C172: 88372 | D172: POR Rock Spring (CR 0052) 02.78 | E172: Bridge Repair | F172: Bridge rehabilitation.Credit Bridge funding being utilized. MAXed at $340,650. | H172: 1760000 | I172: 1760000 | J172: 1760000
A173: 2014 | B173: 4 | C173: 89458 | D173: SUM IR 0271 12.62 | E173: Major Reconstruction | F173: Widening from four to six lanes, including the replacing and widening of four structures (Over SR82 and over Conrail RR). | H173: 62000000 | I173: 62000000 | J173: 62000000
A174: 2014 | B174: 4 | C174: 93445 | D174: SUM SR 0008 16.66 | E174: Noise Wall | F174: Construction of noise wall. | H174: 5500000 | I174: 5500000 | J174: 5500000
A175: 2014 | B175: 4 | C175: 94516 | D175: MAH US 0422 03.62 | E175: Bridge Deck Replacement | F175: Bridge re-deck of sfn# 5004434, provide repairs to slope protection, including steel retaining wall. Replace signing. In the City of Youngstown, Mahoning County, Ohio. | H175: 2075000 | I175: 2075000 | J175: 2075000
A176: 2014 | B176: 6 | C176: 83340 | D176: UNI CR 84 0.261 | E176: Bridge Replacement | F176: Replace existing steel truss bridge with a new structure.Over Little Darby Creek.Local-let with Union County as lead agency. | H176: 1108400 | I176: 1108400 | J176: 1108400
A177: 2014 | B177: 6 | C177: 83953 | D177: DEL SR 605 1.900 | E177: Bridge Repair | F177: Replace bridge over Duncan Run. | H177: 930000 | I177: 930000 | J177: 930000
A178: 2014 | B178: 6 | C178: 94460 | D178: FRA IR 70/Hilliard Rome Int | E178: Section Improvement | F178: FRA-70/Hilliard Rome Rd interflush projectNew Signal at N side of interchang with ramp realigments and wideningAdd lane both directions between I-70 & Meijer DriveAdd NB dual left turn lanes on Hilliard Rome at Renner Rd | H178: 5905000 | I178: 5905000 | J178: 5905000
A179: 2014 | B179: 7 | C179: 76667 | D179: MOT IR 70 10.79 | E179: Major Reconstruction | F179: Full depth removal and replacement of the existing IR 70 mainline pavement, including interchange ramps; Addition of a third lane in each direction as a result of MOT operations; rehabilitation or replacement of various bridges; and, other roadway improve | H179: 50439046.65 | I179: 50439046.65 | J179: 50439046.65
A180: 2014 | B180: 8 | C180: 75643 | D180: HAM IR 71 1.34 Phase 1 | E180: Bridge Repair | F180: Project will perform general rehabilitation and repair to the Lytle Tunnel, Bridge No. HAM-71-0134, SFN: 3106578. Repairs will include sealing of tunnel joints, replacement of tiling, and repair/replacement/upgrade of lighting systems. Electrical syste | H180: 12567000 | I180: 12567000 | J180: 12567000
A181: 2014 | B181: 8 | C181: 82976 | D181: HAM IR 275 10.57 | E181: Major Rehabilitation | F181: Plane, repair, and pave a portion of IR 275 in Hamilton County from the overlap section with I-74 (SLM 10.57) to approximately milepost 34 (SLM 16.12). Overlay and misc bridge work to bridges including HAM-74-0979 (SFN 3108414), HAM-275-1070R (SFN 3116298 | H181: 33500000 | I181: 33500000 | J181: 33500000
A182: 2014 | B182: 8 | C182: 87128 | D182: WAR SR 48 8.94 | E182: Bridge Deck Replacement | F182: Rehabilitate bridge WAR-48-0896 by replacing the concrete deck and painting the structural steel. | H182: 1284000 | I182: 1284000 | J182: 1284000
A183: 2014 | B183: 8 | C183: 87401 | D183: HAM/WAR IR71 19.41/0.00 Loop Rmp | E183: Interchange, Reconstruction | F183: Project will improve safety and reduce congestion by constructing a NB loop ramp from I-71 to Mason Montgomery Rd. This ramp will reduce traffic at the intersection of the existing NB exit ramp with Mason Rd. and the intersection of Fields-Ertel Rd. with | H183: 13432600 | I183: 13432600 | J183: 13432600
A184: 2014 | B184: 8 | C184: 92105 | D184: WAR/GRE US 42 17.94/0.00 | E184: Minor Rehabilitation - Pavement Gnrl Sys | F184: Rehabilitation of the 4-Lane section of US 42 in Warren and Greene Counites. This work is primarily pavement rehabilitation. The existing pavement to be break & seat with a new asphalt overlay. | H184: 15622000 | I184: 15622000 | J184: 15622000
A185: 2014 | B185: 8 | C185: 94289 | D185: BUT TR 134 7.36 D-B Bridge Rehab | E185: Bridge Deck Replacement | F185: Improvements to Bridge No. BUT-TR 134-7.36 which carries Yankee Road over Dick's Creek. Improvements include replacement of the existing concrete deck, replacement of existing steel beams, removing and replacing the concrete backwalls and expansion joints | H185: 1014000 | I185: 1014000 | J185: 1014000
A186: 2014 | B186: 8 | C186: 94628 | D186: HAM IR 71 14.33 | E186: Spot Safety | F186: Provide an auxiliary lane for southbound IR71 from the Pfeiffer on ramp to the SR126 off ramp. Requires moving of a short section of noise wall. | H186: 2700000 | I186: 2700000 | J186: 2700000
A187: 2014 | B187: 8 | C187: 95745 | D187: CLE CR 62 5.63 Des-Bld Br Rehab | E187: Bridge Deck Replacement | F187: Project proposes to replace the existing bridge deck, painting of the existing steel beams and cross frames, bearing replacement, end cross frame replacement, and beam end repairs. Bridge carries CR-62 (Jackson Pike) over the East Fork Little Miami River. | H187: 958636 | I187: 958636 | J187: 958636
A188: 2014 | B188: 9 | C188: 93801 | D188: BRO US 68 30.72 Safety | E188: Turn Lane Addition | F188: Within the Village of Mt. Orab, it is proposed to add left turn lanes on US68 at both SR32 ramp intersections and coordinate the signaels with adjacent signals. Add right turn lane on SR32 eastbound off ramp at it intersections with US68. | H188: 2277115.15 | I188: 2277115.15 | J188: 2277115.15
A189: 2014 | B189: 11 | C189: 94449 | D189: COL SR 11 17.770 | E189: Bridge Deck Replacement | F189: Replace existing superstructure on two (L & R) continuous steel beam bridges. Slight profile adjustment will be required to increase vertical clearance. | H189: 1750900 | I189: 1750900 | J189: 1750900
A190: 2014 | B190: 11 | C190: 95660 | D190: HAS US 250 7.800 | E190: Bridge Replacement | F190: Replace existing bridge with new single span slab bridge | H190: 418550 | I190: 418550 | J190: 418550
A191: 2014 | B191: 12 | C191: 82119 | D191: CUY IR 090 14.90 EB Design Build | E191: Bridge Replacement | F191: Design-Build-Finance ContractConstruct a new structure to replace existng Innerbelt Bridge (1809393). CCG2. Work includes the demolition of the existing structure, (PID 88318) and the replacement of the I-71 bridge deck over I-90/490 (PID 86824). | H191: 366415906 | I191: 366415906 | J191: 366415906
A192: 2014 | B192: 12 | C192: 94723 | D192: CUY IR 480 11.60 Interchange | E192: Intersection Improvement | F192: Upgrade the IR-480 and Tiedeman Interchange in the City of Brooklyn to improve traffic flow. SFY2013 pilot Quick Clear project. | H192: 2482300 | I192: 2482300 | J192: 2482300
A193: 2015 | B193: 2 | C193: 95437 | D193: HAN/WOO 75 19.22/0.00 Pav Widen | E193: Major Widening | F193: A major new funded project to widen I-75 to three lanes in each direction; perform necessary related work. | H193: 51500000 | I193: 51500000 | J193: 51500000
A194: 2015 | B194: 3 | C194: 88825 | D194: LOR SR 0018 12.29 | E194: Bridge Repair | F194: Replace Box Beam SuperstructureLOR-SR-18-12.29Design Build selected at 07/18/11 WP Meeting | H194: 440000 | I194: 440000 | J194: 440000
A195: 2015 | B195: 6 | C195: 16707 | D195: MAD TR 24 02.750 | E195: Bridge Replacement | F195: Replacement of deficient narrow structure over Little Darby Creek | H195: 1486000 | I195: 1486000 | J195: =IF(G195<>0,G195,H195) -> 1486000
A196: 2015 | B196: 8 | C196: 84613 | D196: CLE SR 32 7.69N | E196: Bridge Deck Replacement | F196: Replace continuous slab superstructure of bridge CLE-32-0769N. | H196: 1262800 | I196: 1262800 | J196: 1262800
A197: 2015 | B197: 10 | C197: 87371 | D197: GAL CR 20 9.370 | E197: Bridge Replacement | F197: Bridge replacement project. Work includes removal of superstructure and selective demolition of piers, abutments and substructure. Replacement to include widening to new standards. GAL CR 20 9.37 SFN 2734109. Bridge width 20', Pavement/Roadway width 19', | H197: 1322289.95 | I197: =IF(G197="",H197,G197) -> 1322289.95 | J197: 1322289.95
A198: 2016 | B198: 4 | C198: 93501 | D198: SUM IR 0076 00.00 | E198: Major Rehabilitation | F198: Complete pavement replacement from Medina County line to State Route 21. Pavement replacement and widening to six lanes from State Route 21 to State Route 619. | H198: 134269000 | I198: 134269000 | J198: 134269000
A199: 2016 | B199: 6 | C199: 83988 | D199: FRA IR 270-49.00 (at Alum Cr Dr) | E199: Interchange, Reconstruction | F199: Unfunded projectConstruct new IR 270 SB to WB on ramp, widen IR 270 EB off ramp, widen Alum Creek Dr to provide appropriate turn lanes including the structure over IR 2703rd project resulting from study of I-270/Alum Creek interchange for safety and capac | I199: 0 | J199: 0
A200: 2016 | B200: 8 | C200: 88679 | D200: HAM IR 74 9.53 | E200: Minor Rehabilitation - Pavement Prmy Sys | F200: Minor rehab on the pavement including structures of I-74 from the overlap section to I-75. The mainline and ramp work at the North Bend interchange is omitted with this project and included in pid 93079. | H200: 16663900 | I200: 16663900 | J200: 16663900
... 300 more rows
